Body Name,Date Paid,Transaction Number,Amount,Supplier Name,Supplier Type,Expense Area,Cost Centre Description,Expense Type
Cambridgeshire County Council,02-May-17,23098142-15266658,-728559,Cambridge City Council,Other Public Bodies,LGSS Managed,Shire Hall Area,Business rates
Cambridgeshire County Council,03-May-17,22937902-15278256,-201920.03,Total Gas And Power,Trade Supplier,Assets & Commissioning,Street Lighting Energy,Street lighting Energy
Cambridgeshire County Council,25-May-17,23379255-15392043,-69780.48,Orchard House Nursing Home,Care Establishment,2 - Commissioning - Older people Pool,Older People - Fenland,Residential Independent Sector
Cambridgeshire County Council,22-May-17,23188649-15374268,-40000,Gretton School,Education,S&C,Placements - Education,Independent School Placements
Cambridgeshire County Council,22-May-17,22592608-15374197,-22284,Sanctuary Housing Association,Care Establishment,2 - Commissioning - Older people Pool,Older People - City & South,SDS - PB Travel
Cambridgeshire County Council,22-May-17,23192597-15374269,-21193,Gretton School,Education,S&C,Placements - Education,Independent School Placements
Cambridgeshire County Council,05-May-17,23166510-15301255,-17065.33,Park House School,Education,S&C,Placements - Education,Independent School Placements
Cambridgeshire County Council,04-May-17,23138521-15289134,-14938.22,Park House School,Education,S&C,Placements - Education,Independent School Placements
Cambridgeshire County Council,03-May-17,22937907-15278257,-13165.88,Total Gas And Power,Trade Supplier,Assets & Commissioning,Parish & District Council costs,Street lighting Energy
Cambridgeshire County Council,02-May-17,23069932-15266844,-13139.7,Nottingham Rehab Supplies Ltd,Trade Supplier,3 - Commissioning - Disabilities & Carers,ICES (Pool),Contribution to Partnerships
Cambridgeshire County Council,18-May-17,23319277-15365871,-10041.85,Acorn Park School,Education,S&C,Placements - Education,Independent School Placements
Cambridgeshire County Council,02-May-17,23131428-15274182,-7958.37,Cyngor Gwynedd Council,Other Public Bodies,S&C,Procurement - Out-County Mainstream,Education Recoupment
Cambridgeshire County Council,02-May-17,23131425-15274180,-7738.57,Cyngor Gwynedd Council,Other Public Bodies,S&C,Procurement - Out-County Mainstream,Education Recoupment
Cambridgeshire County Council,03-May-17,22937909-15278258,-7623.96,Total Gas And Power,Trade Supplier,Assets & Commissioning,Parish & District Council costs,Street lighting Energy
Cambridgeshire County Council,04-May-17,23164116-15289137,-6789.32,Park House School,Education,S&C,Placements - Education,Independent School Placements
Cambridgeshire County Council,04-May-17,23154510-15293195,-4655,Brookdale Healthcare Limited,Care Establishment,2 - Operations - Learning Disability,LDP Hunts special needs,Respite Independent Sector
Cambridgeshire County Council,25-May-17,23387156-15414563,-4655,Brookdale Healthcare Limited,Care Establishment,2 - Operations - Learning Disability,LDP Hunts special needs,Respite Independent Sector
Cambridgeshire County Council,25-May-17,23387164-15414571,-4655,Brookdale Healthcare Limited,Care Establishment,2 - Operations - Learning Disability,LDP Hunts special needs,Respite Independent Sector
Cambridgeshire County Council,25-May-17,23336128-15414535,-4655,Brookdale Healthcare Limited,Care Establishment,2 - Operations - Learning Disability,LDP Hunts special needs,Respite Independent Sector
Cambridgeshire County Council,25-May-17,23387155-15414562,-4655,Brookdale Healthcare Limited,Care Establishment,2 - Operations - Learning Disability,LDP Huntingdonshire Locality - Care,Respite Independent Sector
Cambridgeshire County Council,25-May-17,23387169-15414576,-4655,Brookdale Healthcare Limited,Care Establishment,2 - Operations - Learning Disability,LDP Huntingdonshire Locality - Care,Respite Independent Sector
Cambridgeshire County Council,25-May-17,23336125-15414532,-4655,Brookdale Healthcare Limited,Care Establishment,2 - Operations - Learning Disability,LDP Hunts special needs,Respite Independent Sector
Cambridgeshire County Council,25-May-17,23336131-15414538,-4655,Brookdale Healthcare Limited,Care Establishment,2 - Operations - Learning Disability,LDP Hunts special needs,Respite Independent Sector
Cambridgeshire County Council,04-May-17,23154516-15293200,-4655,Brookdale Healthcare Limited,Care Establishment,2 - Operations - Learning Disability,LDP Huntingdonshire Locality - Care,Respite Independent Sector
Cambridgeshire County Council,04-May-17,23154521-15293204,-4655,Brookdale Healthcare Limited,Care Establishment,2 - Operations - Learning Disability,LDP Huntingdonshire Locality - Care,Respite Independent Sector
Cambridgeshire County Council,25-May-17,23336132-15414539,-4655,Brookdale Healthcare Limited,Care Establishment,2 - Operations - Learning Disability,LDP Hunts special needs,Respite Independent Sector
Cambridgeshire County Council,04-May-17,23154515-15293199,-4655,Brookdale Healthcare Limited,Care Establishment,2 - Operations - Learning Disability,LDP Hunts special needs,Respite Independent Sector
Cambridgeshire County Council,25-May-17,23387176-15414583,-4655,Brookdale Healthcare Limited,Care Establishment,2 - Operations - Learning Disability,LDP Hunts special needs,Respite Independent Sector
Cambridgeshire County Council,25-May-17,23387177-15414584,-4655,Brookdale Healthcare Limited,Care Establishment,2 - Operations - Learning Disability,LDP Hunts special needs,Respite Independent Sector
Cambridgeshire County Council,04-May-17,23154512-15293196,-4655,Brookdale Healthcare Limited,Care Establishment,2 - Operations - Learning Disability,LDP Huntingdonshire Locality - Care,Respite Independent Sector
Cambridgeshire County Council,25-May-17,23387157-15414564,-4655,Brookdale Healthcare Limited,Care Establishment,2 - Operations - Learning Disability,LDP Huntingdonshire Locality - Care,Respite Independent Sector
Cambridgeshire County Council,25-May-17,23387166-15414573,-4655,Brookdale Healthcare Limited,Care Establishment,2 - Operations - Learning Disability,LDP Huntingdonshire Locality - Care,Respite Independent Sector
Cambridgeshire County Council,25-May-17,23336124-15414531,-4655,Brookdale Healthcare Limited,Care Establishment,2 - Operations - Learning Disability,LDP Huntingdonshire Locality - Care,Respite Independent Sector
Cambridgeshire County Council,25-May-17,23336129-15414536,-4655,Brookdale Healthcare Limited,Care Establishment,2 - Operations - Learning Disability,LDP Hunts special needs,Respite Independent Sector
Cambridgeshire County Council,25-May-17,23336140-15414547,-4655,Brookdale Healthcare Limited,Care Establishment,2 - Operations - Learning Disability,LDP Hunts special needs,Respite Independent Sector
Cambridgeshire County Council,04-May-17,23154507-15293193,-4655,Brookdale Healthcare Limited,Care Establishment,2 - Operations - Learning Disability,LDP Hunts special needs,Respite Independent Sector
Cambridgeshire County Council,04-May-17,23154524-15293207,-4655,Brookdale Healthcare Limited,Care Establishment,2 - Operations - Learning Disability,LDP Huntingdonshire Locality - Care,Respite Independent Sector
Cambridgeshire County Council,25-May-17,23336136-15414543,-4655,Brookdale Healthcare Limited,Care Establishment,2 - Operations - Learning Disability,LDP Huntingdonshire Locality - Care,Respite Independent Sector
Cambridgeshire County Council,04-May-17,23154513-15293197,-4655,Brookdale Healthcare Limited,Care Establishment,2 - Operations - Learning Disability,LDP Hunts special needs,Respite Independent Sector
Cambridgeshire County Council,04-May-17,23154519-15293202,-4655,Brookdale Healthcare Limited,Care Establishment,2 - Operations - Learning Disability,LDP Huntingdonshire Locality - Care,Respite Independent Sector
Cambridgeshire County Council,25-May-17,23387173-15414580,-4655,Brookdale Healthcare Limited,Care Establishment,2 - Operations - Learning Disability,LDP Huntingdonshire Locality - Care,Respite Independent Sector
Cambridgeshire County Council,25-May-17,23336135-15414542,-4655,Brookdale Healthcare Limited,Care Establishment,2 - Operations - Learning Disability,LDP Hunts special needs,Respite Independent Sector
Cambridgeshire County Council,30-May-17,23345417-15427015,-3333,The Mary Hare Primary School,Education,S&C,Placements - Education,Independent School Placements
Cambridgeshire County Council,25-May-17,23387161-15414568,-3325,Brookdale Healthcare Limited,Care Establishment,2 - Operations - Learning Disability,LDP Hunts special needs,Respite Independent Sector
Cambridgeshire County Council,04-May-17,23154505-15293191,-3325,Brookdale Healthcare Limited,Care Establishment,2 - Operations - Learning Disability,LDP Huntingdonshire Locality - Care,Respite Independent Sector
Cambridgeshire County Council,25-May-17,23336122-15414529,-3325,Brookdale Healthcare Limited,Care Establishment,2 - Operations - Learning Disability,LDP Huntingdonshire Locality - Care,Respite Independent Sector
Cambridgeshire County Council,23-May-17,23354827-15377419,-3300.75,Stagecoach Services Ltd,Trade Supplier,Passenger Transport,Bus Service Operators Grant,Support - subsidised bus routes
Cambridgeshire County Council,18-May-17,23259605-15364851,-3205.96,The Edmund Trust,Care Establishment,2 - Operations - Learning Disability,LDP South Cambs Locality - Care,Supported Living
Cambridgeshire County Council,18-May-17,23259610-15364853,-3205.96,The Edmund Trust,Care Establishment,2 - Operations - Learning Disability,LDP South Cambs Locality - Care,Supported Living
Cambridgeshire County Council,05-May-17,22847940-15301215,-3137,The Cambridge Nursing Home,Care Establishment,6 - Commissioning - Mental Health & Supporting People,OP Blocks - Short-term Care Placements,Short Term Other
Cambridgeshire County Council,05-May-17,22846624-15301214,-3137,The Cambridge Nursing Home,Care Establishment,6 - Commissioning - Mental Health & Supporting People,OP Blocks - Short-term Care Placements,Short Term Other
Cambridgeshire County Council,25-May-17,23258613-15414247,-2919.44,Aurora Orchard Manor#1,Care Establishment,3 - Operations - Countywide Services,LDP Young Adults - Care,Respite Independent Sector
Cambridgeshire County Council,25-May-17,23258615-15414249,-2919.44,Aurora Orchard Manor#1,Care Establishment,3 - Operations - Countywide Services,LDP Young Adults - Care,Respite Independent Sector
Cambridgeshire County Council,25-May-17,23258614-15414248,-2919.44,Aurora Orchard Manor#1,Care Establishment,3 - Operations - Countywide Services,LDP Young Adults - Care,Respite Independent Sector
Cambridgeshire County Council,25-May-17,23130581-15408635,-2802.58,Fevaca,Care Establishment,S&C,Placements - Social Care,Agency Placements - In Cambs
Cambridgeshire County Council,11-May-17,23208687-15325209,-2496.48,Cambridgeshire And Peterborough Nhs Foundation Trust,Trust (Other),4 - Commissioning - Mental Health & Supporting People,E Cambs & Fenland Mental Health Team,Residential Independent Sector
Cambridgeshire County Council,25-May-17,23155358-15412292,-2337.29,Dimensions (Uk) Ltd,Care Establishment,2 - Operations - Learning Disability,LDP South Cambs - Special Needs,Supported Living
Cambridgeshire County Council,25-May-17,23264250-15412320,-2337.29,Dimensions (Uk) Ltd,Care Establishment,2 - Operations - Learning Disability,LDP South Cambs - Special Needs,Supported Living
Cambridgeshire County Council,25-May-17,23339705-15412353,-2337.29,Dimensions (Uk) Ltd,Care Establishment,2 - Operations - Learning Disability,LDP Cambs City - Special Needs,Supported Living
Cambridgeshire County Council,25-May-17,23375272-15412405,-2337.29,Dimensions (Uk) Ltd,Care Establishment,2 - Operations - Learning Disability,LDP South Cambs - Special Needs,Supported Living
Cambridgeshire County Council,25-May-17,23375286-15412416,-2337.29,Dimensions (Uk) Ltd,Care Establishment,2 - Operations - Learning Disability,LDP Cambs City - Special Needs,Supported Living
Cambridgeshire County Council,25-May-17,23337439-15412345,-2337.29,Dimensions (Uk) Ltd,Care Establishment,2 - Operations - Learning Disability,LDP Cambs City - Special Needs,Supported Living
Cambridgeshire County Council,25-May-17,23337440-15412346,-2337.29,Dimensions (Uk) Ltd,Care Establishment,2 - Operations - Learning Disability,LDP South Cambs - Special Needs,Supported Living
Cambridgeshire County Council,25-May-17,23375265-15412399,-2337.29,Dimensions (Uk) Ltd,Care Establishment,2 - Operations - Learning Disability,LDP Cambs City - Special Needs,Supported Living
Cambridgeshire County Council,25-May-17,23264258-15412328,-2337.29,Dimensions (Uk) Ltd,Care Establishment,2 - Operations - Learning Disability,LDP South Cambs - Special Needs,Supported Living
Cambridgeshire County Council,25-May-17,23375282-15412412,-2337.29,Dimensions (Uk) Ltd,Care Establishment,2 - Operations - Learning Disability,LDP Cambs City - Special Needs,Supported Living
Cambridgeshire County Council,25-May-17,23155353-15412287,-2337.29,Dimensions (Uk) Ltd,Care Establishment,2 - Operations - Learning Disability,LDP Cambs City - Special Needs,Supported Living
Cambridgeshire County Council,25-May-17,23264263-15412333,-2337.29,Dimensions (Uk) Ltd,Care Establishment,2 - Operations - Learning Disability,LDP South Cambs - Special Needs,Supported Living
Cambridgeshire County Council,25-May-17,23337407-15412337,-2337.29,Dimensions (Uk) Ltd,Care Establishment,2 - Operations - Learning Disability,LDP South Cambs - Special Needs,Supported Living
Cambridgeshire County Council,25-May-17,23155352-15412286,-2337.29,Dimensions (Uk) Ltd,Care Establishment,2 - Operations - Learning Disability,LDP Cambs City - Special Needs,Supported Living
Cambridgeshire County Council,25-May-17,23155357-15412291,-2337.29,Dimensions (Uk) Ltd,Care Establishment,2 - Operations - Learning Disability,LDP South Cambs - Special Needs,Supported Living
Cambridgeshire County Council,25-May-17,23155365-15412299,-2337.29,Dimensions (Uk) Ltd,Care Establishment,2 - Operations - Learning Disability,LDP Cambs City - Special Needs,Supported Living
Cambridgeshire County Council,25-May-17,23264251-15412321,-2337.29,Dimensions (Uk) Ltd,Care Establishment,2 - Operations - Learning Disability,LDP Cambs City - Special Needs,Supported Living
Cambridgeshire County Council,25-May-17,23264253-15412323,-2337.29,Dimensions (Uk) Ltd,Care Establishment,2 - Operations - Learning Disability,LDP Cambs City - Special Needs,Supported Living
Cambridgeshire County Council,25-May-17,23264254-15412324,-2337.29,Dimensions (Uk) Ltd,Care Establishment,2 - Operations - Learning Disability,LDP South Cambs - Special Needs,Supported Living
Cambridgeshire County Council,25-May-17,23264255-15412325,-2337.29,Dimensions (Uk) Ltd,Care Establishment,2 - Operations - Learning Disability,LDP South Cambs - Special Needs,Supported Living
Cambridgeshire County Council,25-May-17,23264261-15412331,-2337.29,Dimensions (Uk) Ltd,Care Establishment,2 - Operations - Learning Disability,LDP South Cambs - Special Needs,Supported Living
Cambridgeshire County Council,25-May-17,23337458-15412350,-2337.29,Dimensions (Uk) Ltd,Care Establishment,2 - Operations - Learning Disability,LDP Cambs City - Special Needs,Supported Living
Cambridgeshire County Council,25-May-17,23339710-15412354,-2337.29,Dimensions (Uk) Ltd,Care Establishment,2 - Operations - Learning Disability,LDP Cambs City - Special Needs,Supported Living
Cambridgeshire County Council,25-May-17,23375273-15412406,-2337.29,Dimensions (Uk) Ltd,Care Establishment,2 - Operations - Learning Disability,LDP South Cambs - Special Needs,Supported Living
Cambridgeshire County Council,25-May-17,23155355-15412289,-2337.29,Dimensions (Uk) Ltd,Care Establishment,2 - Operations - Learning Disability,LDP Cambs City - Special Needs,Supported Living
Cambridgeshire County Council,25-May-17,23337429-15412341,-2337.29,Dimensions (Uk) Ltd,Care Establishment,2 - Operations - Learning Disability,LDP South Cambs - Special Needs,Supported Living
Cambridgeshire County Council,25-May-17,23375263-15412397,-2337.29,Dimensions (Uk) Ltd,Care Establishment,2 - Operations - Learning Disability,LDP Cambs City - Special Needs,Supported Living
Cambridgeshire County Council,25-May-17,23155363-15412297,-2337.29,Dimensions (Uk) Ltd,Care Establishment,2 - Operations - Learning Disability,LDP Cambs City - Special Needs,Supported Living
Cambridgeshire County Council,25-May-17,23155367-15412301,-2337.29,Dimensions (Uk) Ltd,Care Establishment,2 - Operations - Learning Disability,LDP Cambs City - Special Needs,Supported Living
Cambridgeshire County Council,25-May-17,23337421-15412340,-2337.29,Dimensions (Uk) Ltd,Care Establishment,2 - Operations - Learning Disability,LDP South Cambs - Special Needs,Supported Living
Cambridgeshire County Council,25-May-17,23375262-15412396,-2337.29,Dimensions (Uk) Ltd,Care Establishment,2 - Operations - Learning Disability,LDP South Cambs - Special Needs,Supported Living
Cambridgeshire County Council,25-May-17,23375280-15412410,-2337.29,Dimensions (Uk) Ltd,Care Establishment,2 - Operations - Learning Disability,LDP South Cambs - Special Needs,Supported Living
Cambridgeshire County Council,23-May-17,23192559-15377348,-2267.46,Softcat Ltd,Trade Supplier,LRNG,ICT Service Procurement,Materials for resale
Cambridgeshire County Council,25-May-17,23152013-15388669,-2232.75,The Cambridge Nursing Centre,Care Establishment,5 - Commissioning - Mental Health & Supporting People,OP Blocks - Care Placements,Nursing Independent Sector
Cambridgeshire County Council,25-May-17,23152048-15388678,-2232.75,The Cambridge Nursing Centre,Care Establishment,5 - Commissioning - Mental Health & Supporting People,OP Blocks - Care Placements,Nursing Independent Sector
Cambridgeshire County Council,25-May-17,23152009-15388666,-2232.75,The Cambridge Nursing Centre,Care Establishment,5 - Commissioning - Mental Health & Supporting People,OP Blocks - Care Placements,Nursing Independent Sector
Cambridgeshire County Council,25-May-17,23152001-15388664,-2232.75,The Cambridge Nursing Centre,Care Establishment,5 - Commissioning - Mental Health & Supporting People,OP Blocks - Care Placements,Nursing Independent Sector
Cambridgeshire County Council,25-May-17,23152010-15388667,-2232.75,The Cambridge Nursing Centre,Care Establishment,5 - Commissioning - Mental Health & Supporting People,OP Blocks - Care Placements,Nursing Independent Sector
Cambridgeshire County Council,25-May-17,23151993-15388663,-2232.75,The Cambridge Nursing Centre,Care Establishment,5 - Commissioning - Mental Health & Supporting People,OP Blocks - Care Placements,Nursing Independent Sector
Cambridgeshire County Council,25-May-17,23152034-15388673,-2232.75,The Cambridge Nursing Centre,Care Establishment,5 - Commissioning - Mental Health & Supporting People,OP Blocks - Care Placements,Nursing Independent Sector
Cambridgeshire County Council,25-May-17,23151990-15388662,-2232.75,The Cambridge Nursing Centre,Care Establishment,5 - Commissioning - Mental Health & Supporting People,OP Blocks - Care Placements,Nursing Independent Sector
Cambridgeshire County Council,25-May-17,23152002-15388665,-2232.75,The Cambridge Nursing Centre,Care Establishment,5 - Commissioning - Mental Health & Supporting People,OP Blocks - Care Placements,Nursing Independent Sector
Cambridgeshire County Council,25-May-17,23152045-15388677,-2232.75,The Cambridge Nursing Centre,Care Establishment,5 - Commissioning - Mental Health & Supporting People,OP Blocks - Care Placements,Nursing Independent Sector
Cambridgeshire County Council,25-May-17,23152033-15388672,-2232.75,The Cambridge Nursing Centre,Care Establishment,5 - Commissioning - Mental Health & Supporting People,OP Blocks - Care Placements,Nursing Independent Sector
Cambridgeshire County Council,25-May-17,23152039-15388674,-2232.75,The Cambridge Nursing Centre,Care Establishment,5 - Commissioning - Mental Health & Supporting People,OP Blocks - Care Placements,Nursing Independent Sector
Cambridgeshire County Council,25-May-17,23152041-15388676,-2232.75,The Cambridge Nursing Centre,Care Establishment,5 - Commissioning - Mental Health & Supporting People,OP Blocks - Care Placements,Nursing Independent Sector
Cambridgeshire County Council,25-May-17,23161120-15388800,-2232.75,The Cambridge Nursing Centre,Care Establishment,5 - Commissioning - Mental Health & Supporting People,OP Blocks - Care Placements,Nursing Independent Sector
Cambridgeshire County Council,25-May-17,23151989-15388661,-2232.75,The Cambridge Nursing Centre,Care Establishment,5 - Commissioning - Mental Health & Supporting People,OP Blocks - Care Placements,Nursing Independent Sector
Cambridgeshire County Council,25-May-17,23152012-15388668,-2232.75,The Cambridge Nursing Centre,Care Establishment,5 - Commissioning - Mental Health & Supporting People,OP Blocks - Care Placements,Nursing Independent Sector
Cambridgeshire County Council,25-May-17,23161119-15388799,-2232.75,The Cambridge Nursing Centre,Care Establishment,5 - Commissioning - Mental Health & Supporting People,OP Blocks - Care Placements,Nursing Independent Sector
Cambridgeshire County Council,25-May-17,23258616-15414250,-2085.31,Aurora Orchard Manor#1,Care Establishment,3 - Operations - Countywide Services,LDP Young Adults - Care,Respite Independent Sector
Cambridgeshire County Council,16-May-17,23279302-15347243,-2037.02,South Cambridgeshire District Council,Other Public Bodies,6 - Commissioning - Quality & Transformation,POVA - Training Budget,General Office Expenses & Stationery
Cambridgeshire County Council,25-May-17,23368954-15400926,-1993.93,Alderton House,Care Establishment,2 - Operations - Learning Disability,LDP E Cambs Locality - Care,Residential Independent Sector
Cambridgeshire County Council,25-May-17,23368956-15400928,-1993.93,Alderton House,Care Establishment,2 - Operations - Learning Disability,LDP E Cambs Locality - Care,Residential Independent Sector
Cambridgeshire County Council,25-May-17,23375919-15401080,-1993.93,Alderton House,Care Establishment,2 - Operations - Learning Disability,LDP E Cambs Locality - Care,Residential Independent Sector
Cambridgeshire County Council,25-May-17,23375926-15401087,-1993.93,Alderton House,Care Establishment,2 - Operations - Learning Disability,LDP E Cambs Locality - Care,Residential Independent Sector
Cambridgeshire County Council,25-May-17,23375931-15401092,-1993.93,Alderton House,Care Establishment,2 - Operations - Learning Disability,LDP E Cambs Locality - Care,Residential Independent Sector
Cambridgeshire County Council,25-May-17,23375939-15401100,-1993.93,Alderton House,Care Establishment,2 - Operations - Learning Disability,LDP E Cambs Locality - Care,Residential Independent Sector
Cambridgeshire County Council,25-May-17,23375943-15401104,-1993.93,Alderton House,Care Establishment,2 - Operations - Learning Disability,LDP E Cambs Locality - Care,Residential Independent Sector
Cambridgeshire County Council,25-May-17,23375953-15401114,-1993.93,Alderton House,Care Establishment,2 - Operations - Learning Disability,LDP E Cambs Locality - Care,Residential Independent Sector
Cambridgeshire County Council,25-May-17,23376005-15401166,-1993.93,Alderton House,Care Establishment,2 - Operations - Learning Disability,LDP E Cambs Locality - Care,Residential Independent Sector
Cambridgeshire County Council,25-May-17,23382791-15401183,-1993.93,Alderton House,Care Establishment,2 - Operations - Learning Disability,LDP E Cambs Locality - Care,Residential Independent Sector
Cambridgeshire County Council,25-May-17,23368957-15400929,-1993.93,Alderton House,Care Establishment,2 - Operations - Learning Disability,LDP E Cambs Locality - Care,Residential Independent Sector
Cambridgeshire County Council,25-May-17,23375945-15401106,-1993.93,Alderton House,Care Establishment,2 - Operations - Learning Disability,LDP E Cambs Locality - Care,Residential Independent Sector
Cambridgeshire County Council,25-May-17,23375977-15401138,-1993.93,Alderton House,Care Establishment,2 - Operations - Learning Disability,LDP E Cambs Locality - Care,Residential Independent Sector
Cambridgeshire County Council,25-May-17,23376001-15401162,-1993.93,Alderton House,Care Establishment,2 - Operations - Learning Disability,LDP E Cambs Locality - Care,Residential Independent Sector
Cambridgeshire County Council,25-May-17,23376002-15401163,-1993.93,Alderton House,Care Establishment,2 - Operations - Learning Disability,LDP E Cambs Locality - Care,Residential Independent Sector
Cambridgeshire County Council,25-May-17,23382775-15401168,-1993.93,Alderton House,Care Establishment,2 - Operations - Learning Disability,LDP E Cambs Locality - Care,Residential Independent Sector
Cambridgeshire County Council,25-May-17,23382785-15401177,-1993.93,Alderton House,Care Establishment,2 - Operations - Learning Disability,LDP E Cambs Locality - Care,Residential Independent Sector
Cambridgeshire County Council,25-May-17,23368964-15400936,-1993.93,Alderton House,Care Establishment,2 - Operations - Learning Disability,LDP E Cambs Locality - Care,Residential Independent Sector
Cambridgeshire County Council,25-May-17,23375922-15401083,-1993.93,Alderton House,Care Establishment,2 - Operations - Learning Disability,LDP E Cambs Locality - Care,Residential Independent Sector
Cambridgeshire County Council,25-May-17,23375951-15401112,-1993.93,Alderton House,Care Establishment,2 - Operations - Learning Disability,LDP E Cambs Locality - Care,Residential Independent Sector
Cambridgeshire County Council,25-May-17,23375985-15401146,-1993.93,Alderton House,Care Establishment,2 - Operations - Learning Disability,LDP E Cambs Locality - Care,Residential Independent Sector
Cambridgeshire County Council,25-May-17,23375997-15401158,-1993.93,Alderton House,Care Establishment,2 - Operations - Learning Disability,LDP E Cambs Locality - Care,Residential Independent Sector
Cambridgeshire County Council,25-May-17,23382788-15401180,-1993.93,Alderton House,Care Establishment,2 - Operations - Learning Disability,LDP E Cambs Locality - Care,Residential Independent Sector
Cambridgeshire County Council,25-May-17,23368966-15400938,-1993.93,Alderton House,Care Establishment,2 - Operations - Learning Disability,LDP E Cambs Locality - Care,Residential Independent Sector
Cambridgeshire County Council,25-May-17,23375924-15401085,-1993.93,Alderton House,Care Establishment,2 - Operations - Learning Disability,LDP E Cambs Locality - Care,Residential Independent Sector
Cambridgeshire County Council,25-May-17,23375925-15401086,-1993.93,Alderton House,Care Establishment,2 - Operations - Learning Disability,LDP E Cambs Locality - Care,Residential Independent Sector
Cambridgeshire County Council,25-May-17,23368945-15400917,-1993.93,Alderton House,Care Establishment,2 - Operations - Learning Disability,LDP E Cambs Locality - Care,Residential Independent Sector
Cambridgeshire County Council,25-May-17,23375960-15401121,-1993.93,Alderton House,Care Establishment,2 - Operations - Learning Disability,LDP E Cambs Locality - Care,Residential Independent Sector
Cambridgeshire County Council,25-May-17,23375966-15401127,-1993.93,Alderton House,Care Establishment,2 - Operations - Learning Disability,LDP E Cambs Locality - Care,Residential Independent Sector
Cambridgeshire County Council,25-May-17,23375999-15401160,-1993.93,Alderton House,Care Establishment,2 - Operations - Learning Disability,LDP E Cambs Locality - Care,Residential Independent Sector
Cambridgeshire County Council,25-May-17,23376006-15401167,-1993.93,Alderton House,Care Establishment,2 - Operations - Learning Disability,LDP E Cambs Locality - Care,Residential Independent Sector
Cambridgeshire County Council,25-May-17,23382779-15401172,-1993.93,Alderton House,Care Establishment,2 - Operations - Learning Disability,LDP E Cambs Locality - Care,Residential Independent Sector
Cambridgeshire County Council,25-May-17,23382782-15401175,-1993.93,Alderton House,Care Establishment,2 - Operations - Learning Disability,LDP E Cambs Locality - Care,Residential Independent Sector
Cambridgeshire County Council,25-May-17,23368958-15400930,-1993.93,Alderton House,Care Establishment,2 - Operations - Learning Disability,LDP E Cambs Locality - Care,Residential Independent Sector
Cambridgeshire County Council,25-May-17,23375918-15401079,-1993.93,Alderton House,Care Establishment,2 - Operations - Learning Disability,LDP E Cambs Locality - Care,Residential Independent Sector
Cambridgeshire County Council,25-May-17,23375920-15401081,-1993.93,Alderton House,Care Establishment,2 - Operations - Learning Disability,LDP E Cambs Locality - Care,Residential Independent Sector
Cambridgeshire County Council,25-May-17,23375934-15401095,-1993.93,Alderton House,Care Establishment,2 - Operations - Learning Disability,LDP E Cambs Locality - Care,Residential Independent Sector
Cambridgeshire County Council,25-May-17,23368946-15400918,-1993.93,Alderton House,Care Establishment,2 - Operations - Learning Disability,LDP E Cambs Locality - Care,Residential Independent Sector
Cambridgeshire County Council,25-May-17,23375944-15401105,-1993.93,Alderton House,Care Establishment,2 - Operations - Learning Disability,LDP E Cambs Locality - Care,Residential Independent Sector
Cambridgeshire County Council,25-May-17,23375947-15401108,-1993.93,Alderton House,Care Establishment,2 - Operations - Learning Disability,LDP E Cambs Locality - Care,Residential Independent Sector
Cambridgeshire County Council,25-May-17,23375975-15401136,-1993.93,Alderton House,Care Establishment,2 - Operations - Learning Disability,LDP E Cambs Locality - Care,Residential Independent Sector
Cambridgeshire County Council,25-May-17,23368963-15400935,-1993.93,Alderton House,Care Establishment,2 - Operations - Learning Disability,LDP E Cambs Locality - Care,Residential Independent Sector
Cambridgeshire County Council,25-May-17,23375929-15401090,-1993.93,Alderton House,Care Establishment,2 - Operations - Learning Disability,LDP E Cambs Locality - Care,Residential Independent Sector
Cambridgeshire County Council,25-May-17,23368940-15400912,-1993.93,Alderton House,Care Establishment,2 - Operations - Learning Disability,LDP E Cambs Locality - Care,Residential Independent Sector
Cambridgeshire County Council,25-May-17,23375955-15401116,-1993.93,Alderton House,Care Establishment,2 - Operations - Learning Disability,LDP E Cambs Locality - Care,Residential Independent Sector
Cambridgeshire County Council,25-May-17,23375967-15401128,-1993.93,Alderton House,Care Establishment,2 - Operations - Learning Disability,LDP E Cambs Locality - Care,Residential Independent Sector
Cambridgeshire County Council,25-May-17,23375968-15401129,-1993.93,Alderton House,Care Establishment,2 - Operations - Learning Disability,LDP E Cambs Locality - Care,Residential Independent Sector
Cambridgeshire County Council,25-May-17,23375992-15401153,-1993.93,Alderton House,Care Establishment,2 - Operations - Learning Disability,LDP E Cambs Locality - Care,Residential Independent Sector
Cambridgeshire County Council,25-May-17,23382776-15401169,-1993.93,Alderton House,Care Establishment,2 - Operations - Learning Disability,LDP E Cambs Locality - Care,Residential Independent Sector
Cambridgeshire County Council,25-May-17,23368965-15400937,-1993.93,Alderton House,Care Establishment,2 - Operations - Learning Disability,LDP E Cambs Locality - Care,Residential Independent Sector
Cambridgeshire County Council,25-May-17,23368939-15400911,-1993.93,Alderton House,Care Establishment,2 - Operations - Learning Disability,LDP E Cambs Locality - Care,Residential Independent Sector
Cambridgeshire County Council,25-May-17,23375938-15401099,-1993.93,Alderton House,Care Establishment,2 - Operations - Learning Disability,LDP E Cambs Locality - Care,Residential Independent Sector
Cambridgeshire County Council,25-May-17,23375956-15401117,-1993.93,Alderton House,Care Establishment,2 - Operations - Learning Disability,LDP E Cambs Locality - Care,Residential Independent Sector
Cambridgeshire County Council,25-May-17,23375957-15401118,-1993.93,Alderton House,Care Establishment,2 - Operations - Learning Disability,LDP E Cambs Locality - Care,Residential Independent Sector
Cambridgeshire County Council,25-May-17,23375972-15401133,-1993.93,Alderton House,Care Establishment,2 - Operations - Learning Disability,LDP E Cambs Locality - Care,Residential Independent Sector
Cambridgeshire County Council,25-May-17,23382780-15401173,-1993.93,Alderton House,Care Establishment,2 - Operations - Learning Disability,LDP E Cambs Locality - Care,Residential Independent Sector
Cambridgeshire County Council,25-May-17,23382789-15401181,-1993.93,Alderton House,Care Establishment,2 - Operations - Learning Disability,LDP E Cambs Locality - Care,Residential Independent Sector
Cambridgeshire County Council,25-May-17,23368941-15400913,-1993.93,Alderton House,Care Establishment,2 - Operations - Learning Disability,LDP E Cambs Locality - Care,Residential Independent Sector
Cambridgeshire County Council,25-May-17,23368943-15400915,-1993.93,Alderton House,Care Establishment,2 - Operations - Learning Disability,LDP E Cambs Locality - Care,Residential Independent Sector
Cambridgeshire County Council,25-May-17,23375952-15401113,-1993.93,Alderton House,Care Establishment,2 - Operations - Learning Disability,LDP E Cambs Locality - Care,Residential Independent Sector
Cambridgeshire County Council,25-May-17,23376003-15401164,-1993.93,Alderton House,Care Establishment,2 - Operations - Learning Disability,LDP E Cambs Locality - Care,Residential Independent Sector
Cambridgeshire County Council,18-May-17,23335091-15365700,-1969.8,Park House (Bedford),Care Establishment,3 - Operations - Countywide Services,Countywide PD Service - Care,Residential Independent Sector
Cambridgeshire County Council,18-May-17,23335096-15365705,-1969.8,Park House (Bedford),Care Establishment,3 - Operations - Countywide Services,Countywide PD Service - Care,Residential Independent Sector
Cambridgeshire County Council,18-May-17,23335077-15365686,-1969.8,Park House (Bedford),Care Establishment,3 - Operations - Countywide Services,Countywide PD Service - Care,Residential Independent Sector
Cambridgeshire County Council,18-May-17,23335090-15365699,-1969.8,Park House (Bedford),Care Establishment,3 - Operations - Countywide Services,Countywide PD Service - Care,Residential Independent Sector
Cambridgeshire County Council,18-May-17,23335082-15365691,-1969.8,Park House (Bedford),Care Establishment,3 - Operations - Countywide Services,Countywide PD Service - Care,Residential Independent Sector
Cambridgeshire County Council,18-May-17,23335087-15365696,-1969.8,Park House (Bedford),Care Establishment,3 - Operations - Countywide Services,Countywide PD Service - Care,Residential Independent Sector
Cambridgeshire County Council,18-May-17,23335088-15365697,-1969.8,Park House (Bedford),Care Establishment,3 - Operations - Countywide Services,Countywide PD Service - Care,Residential Independent Sector
Cambridgeshire County Council,18-May-17,23335093-15365702,-1969.8,Park House (Bedford),Care Establishment,3 - Operations - Countywide Services,Countywide PD Service - Care,Residential Independent Sector
Cambridgeshire County Council,18-May-17,23335083-15365692,-1969.8,Park House (Bedford),Care Establishment,3 - Operations - Countywide Services,Countywide PD Service - Care,Residential Independent Sector
Cambridgeshire County Council,18-May-17,23335074-15365683,-1969.8,Park House (Bedford),Care Establishment,3 - Operations - Countywide Services,Countywide PD Service - Care,Residential Independent Sector
Cambridgeshire County Council,18-May-17,23338927-15365718,-1960,Park House (Bedford),Care Establishment,3 - Operations - Countywide Services,Countywide PD Service - Care,Residential Independent Sector
Cambridgeshire County Council,18-May-17,23338928-15365719,-1960,Park House (Bedford),Care Establishment,3 - Operations - Countywide Services,Countywide PD Service - Care,Residential Independent Sector
Cambridgeshire County Council,18-May-17,23338930-15365721,-1960,Park House (Bedford),Care Establishment,3 - Operations - Countywide Services,Countywide PD Service - Care,Residential Independent Sector
Cambridgeshire County Council,18-May-17,23338936-15365725,-1960,Park House (Bedford),Care Establishment,3 - Operations - Countywide Services,Countywide PD Service - Care,Residential Independent Sector
Cambridgeshire County Council,18-May-17,23334879-15365639,-1960,Park House (Bedford),Care Establishment,3 - Operations - Countywide Services,Countywide PD Service - Care,Residential Independent Sector
Cambridgeshire County Council,18-May-17,23334933-15365650,-1960,Park House (Bedford),Care Establishment,3 - Operations - Countywide Services,Countywide PD Service - Care,Residential Independent Sector
Cambridgeshire County Council,18-May-17,23334940-15365652,-1960,Park House (Bedford),Care Establishment,3 - Operations - Countywide Services,Countywide PD Service - Care,Residential Independent Sector
Cambridgeshire County Council,18-May-17,23339004-15365756,-1960,Park House (Bedford),Care Establishment,3 - Operations - Countywide Services,Countywide PD Service - Care,Residential Independent Sector
Cambridgeshire County Council,18-May-17,23339757-15365765,-1960,Park House (Bedford),Care Establishment,3 - Operations - Countywide Services,Countywide PD Service - Care,Residential Independent Sector
Cambridgeshire County Council,18-May-17,23334905-15365677,-1960,Park House (Bedford),Care Establishment,3 - Operations - Countywide Services,Countywide PD Service - Care,Residential Independent Sector
Cambridgeshire County Council,18-May-17,23334880-15365640,-1960,Park House (Bedford),Care Establishment,3 - Operations - Countywide Services,Countywide PD Service - Care,Residential Independent Sector
Cambridgeshire County Council,18-May-17,23334956-15365661,-1960,Park House (Bedford),Care Establishment,3 - Operations - Countywide Services,Countywide PD Service - Care,Residential Independent Sector
Cambridgeshire County Council,18-May-17,23339797-15365785,-1960,Park House (Bedford),Care Establishment,3 - Operations - Countywide Services,Countywide PD Service - Care,Residential Independent Sector
Cambridgeshire County Council,18-May-17,23337107-15365715,-1960,Park House (Bedford),Care Establishment,3 - Operations - Countywide Services,Countywide PD Service - Care,Residential Independent Sector
Cambridgeshire County Council,18-May-17,23338926-15365717,-1960,Park House (Bedford),Care Establishment,3 - Operations - Countywide Services,Countywide PD Service - Care,Residential Independent Sector
Cambridgeshire County Council,18-May-17,23338940-15365729,-1960,Park House (Bedford),Care Establishment,3 - Operations - Countywide Services,Countywide PD Service - Care,Residential Independent Sector
Cambridgeshire County Council,18-May-17,23338951-15365734,-1960,Park House (Bedford),Care Establishment,3 - Operations - Countywide Services,Countywide PD Service - Care,Residential Independent Sector
Cambridgeshire County Council,18-May-17,23338970-15365743,-1960,Park House (Bedford),Care Establishment,3 - Operations - Countywide Services,Countywide PD Service - Care,Residential Independent Sector
Cambridgeshire County Council,18-May-17,23338978-15365745,-1960,Park House (Bedford),Care Establishment,3 - Operations - Countywide Services,Countywide PD Service - Care,Residential Independent Sector
Cambridgeshire County Council,18-May-17,23338992-15365751,-1960,Park House (Bedford),Care Establishment,3 - Operations - Countywide Services,Countywide PD Service - Care,Residential Independent Sector
Cambridgeshire County Council,18-May-17,23334964-15365662,-1960,Park House (Bedford),Care Establishment,3 - Operations - Countywide Services,Countywide PD Service - Care,Residential Independent Sector
Cambridgeshire County Council,18-May-17,23339755-15365763,-1960,Park House (Bedford),Care Establishment,3 - Operations - Countywide Services,Countywide PD Service - Care,Residential Independent Sector
Cambridgeshire County Council,18-May-17,23339781-15365775,-1960,Park House (Bedford),Care Establishment,3 - Operations - Countywide Services,Countywide PD Service - Care,Residential Independent Sector
Cambridgeshire County Council,18-May-17,23334898-15365670,-1960,Park House (Bedford),Care Establishment,3 - Operations - Countywide Services,Countywide PD Service - Care,Residential Independent Sector
Cambridgeshire County Council,18-May-17,23338939-15365728,-1960,Park House (Bedford),Care Establishment,3 - Operations - Countywide Services,Countywide PD Service - Care,Residential Independent Sector
Cambridgeshire County Council,18-May-17,23334886-15365642,-1960,Park House (Bedford),Care Establishment,3 - Operations - Countywide Services,Countywide PD Service - Care,Residential Independent Sector
Cambridgeshire County Council,18-May-17,23334943-15365655,-1960,Park House (Bedford),Care Establishment,3 - Operations - Countywide Services,Countywide PD Service - Care,Residential Independent Sector
Cambridgeshire County Council,18-May-17,23339007-15365759,-1960,Park House (Bedford),Care Establishment,3 - Operations - Countywide Services,Countywide PD Service - Care,Residential Independent Sector
Cambridgeshire County Council,18-May-17,23339769-15365770,-1960,Park House (Bedford),Care Establishment,3 - Operations - Countywide Services,Countywide PD Service - Care,Residential Independent Sector
Cambridgeshire County Council,18-May-17,23339770-15365771,-1960,Park House (Bedford),Care Establishment,3 - Operations - Countywide Services,Countywide PD Service - Care,Residential Independent Sector
Cambridgeshire County Council,18-May-17,23334897-15365669,-1960,Park House (Bedford),Care Establishment,3 - Operations - Countywide Services,Countywide PD Service - Care,Residential Independent Sector
Cambridgeshire County Council,18-May-17,23334906-15365678,-1960,Park House (Bedford),Care Establishment,3 - Operations - Countywide Services,Countywide PD Service - Care,Residential Independent Sector
Cambridgeshire County Council,18-May-17,23334914-15365679,-1960,Park House (Bedford),Care Establishment,3 - Operations - Countywide Services,Countywide PD Service - Care,Residential Independent Sector
Cambridgeshire County Council,18-May-17,23337096-15365707,-1960,Park House (Bedford),Care Establishment,3 - Operations - Countywide Services,Countywide PD Service - Care,Residential Independent Sector
Cambridgeshire County Council,18-May-17,23337105-15365713,-1960,Park House (Bedford),Care Establishment,3 - Operations - Countywide Services,Countywide PD Service - Care,Residential Independent Sector
Cambridgeshire County Council,18-May-17,23338934-15365723,-1960,Park House (Bedford),Care Establishment,3 - Operations - Countywide Services,Countywide PD Service - Care,Residential Independent Sector
Cambridgeshire County Council,18-May-17,23338953-15365736,-1960,Park House (Bedford),Care Establishment,3 - Operations - Countywide Services,Countywide PD Service - Care,Residential Independent Sector
Cambridgeshire County Council,18-May-17,23338961-15365738,-1960,Park House (Bedford),Care Establishment,3 - Operations - Countywide Services,Countywide PD Service - Care,Residential Independent Sector
Cambridgeshire County Council,18-May-17,23334885-15365641,-1960,Park House (Bedford),Care Establishment,3 - Operations - Countywide Services,Countywide PD Service - Care,Residential Independent Sector
Cambridgeshire County Council,18-May-17,23334944-15365656,-1960,Park House (Bedford),Care Establishment,3 - Operations - Countywide Services,Countywide PD Service - Care,Residential Independent Sector
Cambridgeshire County Council,18-May-17,23334955-15365660,-1960,Park House (Bedford),Care Establishment,3 - Operations - Countywide Services,Countywide PD Service - Care,Residential Independent Sector
Cambridgeshire County Council,18-May-17,23334966-15365664,-1960,Park House (Bedford),Care Establishment,3 - Operations - Countywide Services,Countywide PD Service - Care,Residential Independent Sector
Cambridgeshire County Council,18-May-17,23339013-15365761,-1960,Park House (Bedford),Care Establishment,3 - Operations - Countywide Services,Countywide PD Service - Care,Residential Independent Sector
Cambridgeshire County Council,18-May-17,23339796-15365784,-1960,Park House (Bedford),Care Establishment,3 - Operations - Countywide Services,Countywide PD Service - Care,Residential Independent Sector
Cambridgeshire County Council,18-May-17,23338935-15365724,-1960,Park House (Bedford),Care Establishment,3 - Operations - Countywide Services,Countywide PD Service - Care,Residential Independent Sector
Cambridgeshire County Council,18-May-17,23338950-15365733,-1960,Park House (Bedford),Care Establishment,3 - Operations - Countywide Services,Countywide PD Service - Care,Residential Independent Sector
Cambridgeshire County Council,18-May-17,23338960-15365737,-1960,Park House (Bedford),Care Establishment,3 - Operations - Countywide Services,Countywide PD Service - Care,Residential Independent Sector
Cambridgeshire County Council,18-May-17,23334916-15365681,-1960,Park House (Bedford),Care Establishment,3 - Operations - Countywide Services,Countywide PD Service - Care,Residential Independent Sector
Cambridgeshire County Council,18-May-17,23338929-15365720,-1960,Park House (Bedford),Care Establishment,3 - Operations - Countywide Services,Countywide PD Service - Care,Residential Independent Sector
Cambridgeshire County Council,18-May-17,23338948-15365731,-1960,Park House (Bedford),Care Establishment,3 - Operations - Countywide Services,Countywide PD Service - Care,Residential Independent Sector
Cambridgeshire County Council,18-May-17,23338968-15365741,-1960,Park House (Bedford),Care Establishment,3 - Operations - Countywide Services,Countywide PD Service - Care,Residential Independent Sector
Cambridgeshire County Council,18-May-17,23334921-15365644,-1960,Park House (Bedford),Care Establishment,3 - Operations - Countywide Services,Countywide PD Service - Care,Residential Independent Sector
Cambridgeshire County Council,18-May-17,23334952-15365657,-1960,Park House (Bedford),Care Establishment,3 - Operations - Countywide Services,Countywide PD Service - Care,Residential Independent Sector
Cambridgeshire County Council,18-May-17,23338994-15365753,-1960,Park House (Bedford),Care Establishment,3 - Operations - Countywide Services,Countywide PD Service - Care,Residential Independent Sector
Cambridgeshire County Council,18-May-17,23334902-15365674,-1960,Park House (Bedford),Care Establishment,3 - Operations - Countywide Services,Countywide PD Service - Care,Residential Independent Sector
Cambridgeshire County Council,18-May-17,23338938-15365727,-1960,Park House (Bedford),Care Establishment,3 - Operations - Countywide Services,Countywide PD Service - Care,Residential Independent Sector
Cambridgeshire County Council,18-May-17,23338949-15365732,-1960,Park House (Bedford),Care Establishment,3 - Operations - Countywide Services,Countywide PD Service - Care,Residential Independent Sector
Cambridgeshire County Council,18-May-17,23338993-15365752,-1960,Park House (Bedford),Care Establishment,3 - Operations - Countywide Services,Countywide PD Service - Care,Residential Independent Sector
Cambridgeshire County Council,18-May-17,23339012-15365760,-1960,Park House (Bedford),Care Establishment,3 - Operations - Countywide Services,Countywide PD Service - Care,Residential Independent Sector
Cambridgeshire County Council,18-May-17,23339756-15365764,-1960,Park House (Bedford),Care Establishment,3 - Operations - Countywide Services,Countywide PD Service - Care,Residential Independent Sector
Cambridgeshire County Council,18-May-17,23339794-15365782,-1960,Park House (Bedford),Care Establishment,3 - Operations - Countywide Services,Countywide PD Service - Care,Residential Independent Sector
Cambridgeshire County Council,25-May-17,23152040-15388675,-1913.79,The Cambridge Nursing Centre,Care Establishment,5 - Commissioning - Mental Health & Supporting People,OP Blocks - Care Placements,Nursing Independent Sector
Cambridgeshire County Council,25-May-17,23162476-15408268,-1866.09,Eagle Wood Neurological Care,Care Establishment,2 - Commissioning - Older people Pool,Older People Mental Health City & South,Nursing Independent Sector
Cambridgeshire County Council,25-May-17,23162451-15408262,-1866.09,Eagle Wood Neurological Care,Care Establishment,2 - Commissioning - Older people Pool,Older People Mental Health City & South,Nursing Independent Sector
Cambridgeshire County Council,25-May-17,23162481-15408271,-1866.09,Eagle Wood Neurological Care,Care Establishment,2 - Commissioning - Older people Pool,Older People Mental Health City & South,Nursing Independent Sector
Cambridgeshire County Council,25-May-17,23162462-15408265,-1866.09,Eagle Wood Neurological Care,Care Establishment,2 - Commissioning - Older people Pool,Older People Mental Health City & South,Nursing Independent Sector
Cambridgeshire County Council,25-May-17,23375971-15401132,-1709.08,Alderton House,Care Establishment,2 - Operations - Learning Disability,LDP E Cambs Locality - Care,Residential Independent Sector
Cambridgeshire County Council,18-May-17,23338980-15365747,-1680,Park House (Bedford),Care Establishment,3 - Operations - Countywide Services,Countywide PD Service - Care,Residential Independent Sector
Cambridgeshire County Council,12-May-17,23161636-15336245,-1631.27,Affinity Trust,Care Establishment,2 - Operations - Learning Disability,LDP Fens - Special Needs,Day and Domicillary Care Independent Sector
Cambridgeshire County Council,25-May-17,23387130-15401217,-1603.79,Alderton House,Care Establishment,2 - Operations - Learning Disability,LDP E Cambs Locality - Care,Residential Independent Sector
Cambridgeshire County Council,25-May-17,23387136-15401221,-1603.79,Alderton House,Care Establishment,2 - Operations - Learning Disability,LDP E Cambs Locality - Care,Residential Independent Sector
Cambridgeshire County Council,25-May-17,23387012-15401263,-1603.79,Alderton House,Care Establishment,2 - Operations - Learning Disability,LDP E Cambs Locality - Care,Residential Independent Sector
Cambridgeshire County Council,25-May-17,23387021-15401268,-1603.79,Alderton House,Care Establishment,2 - Operations - Learning Disability,LDP E Cambs Locality - Care,Residential Independent Sector
Cambridgeshire County Council,25-May-17,23387070-15401308,-1603.79,Alderton House,Care Establishment,2 - Operations - Learning Disability,LDP E Cambs Locality - Care,Residential Independent Sector
Cambridgeshire County Council,25-May-17,23387086-15401320,-1603.79,Alderton House,Care Establishment,2 - Operations - Learning Disability,LDP E Cambs Locality - Care,Residential Independent Sector
Cambridgeshire County Council,25-May-17,23387103-15401332,-1603.79,Alderton House,Care Establishment,2 - Operations - Learning Disability,LDP E Cambs Locality - Care,Residential Independent Sector
Cambridgeshire County Council,25-May-17,23387112-15401206,-1603.79,Alderton House,Care Establishment,2 - Operations - Learning Disability,LDP E Cambs Locality - Care,Residential Independent Sector
Cambridgeshire County Council,25-May-17,23387132-15401219,-1603.79,Alderton House,Care Establishment,2 - Operations - Learning Disability,LDP E Cambs Locality - Care,Residential Independent Sector
Cambridgeshire County Council,25-May-17,23386967-15401231,-1603.79,Alderton House,Care Establishment,2 - Operations - Learning Disability,LDP E Cambs Locality - Care,Residential Independent Sector
Cambridgeshire County Council,25-May-17,23386968-15401232,-1603.79,Alderton House,Care Establishment,2 - Operations - Learning Disability,LDP E Cambs Locality - Care,Residential Independent Sector
Cambridgeshire County Council,25-May-17,23386985-15401245,-1603.79,Alderton House,Care Establishment,2 - Operations - Learning Disability,LDP E Cambs Locality - Care,Residential Independent Sector
Cambridgeshire County Council,25-May-17,23387056-15401296,-1603.79,Alderton House,Care Establishment,2 - Operations - Learning Disability,LDP E Cambs Locality - Care,Residential Independent Sector
Cambridgeshire County Council,25-May-17,23387060-15401299,-1603.79,Alderton House,Care Establishment,2 - Operations - Learning Disability,LDP E Cambs Locality - Care,Residential Independent Sector
Cambridgeshire County Council,25-May-17,23387085-15401319,-1603.79,Alderton House,Care Establishment,2 - Operations - Learning Disability,LDP E Cambs Locality - Care,Residential Independent Sector
Cambridgeshire County Council,25-May-17,23386982-15401242,-1603.79,Alderton House,Care Establishment,2 - Operations - Learning Disability,LDP E Cambs Locality - Care,Residential Independent Sector
Cambridgeshire County Council,25-May-17,23387013-15401264,-1603.79,Alderton House,Care Establishment,2 - Operations - Learning Disability,LDP E Cambs Locality - Care,Residential Independent Sector
Cambridgeshire County Council,25-May-17,23387025-15401272,-1603.79,Alderton House,Care Establishment,2 - Operations - Learning Disability,LDP E Cambs Locality - Care,Residential Independent Sector
Cambridgeshire County Council,25-May-17,23387032-15401277,-1603.79,Alderton House,Care Establishment,2 - Operations - Learning Disability,LDP E Cambs Locality - Care,Residential Independent Sector
Cambridgeshire County Council,25-May-17,23387053-15401293,-1603.79,Alderton House,Care Establishment,2 - Operations - Learning Disability,LDP E Cambs Locality - Care,Residential Independent Sector
Cambridgeshire County Council,25-May-17,23387106-15401201,-1603.79,Alderton House,Care Establishment,2 - Operations - Learning Disability,LDP E Cambs Locality - Care,Residential Independent Sector
Cambridgeshire County Council,25-May-17,23386966-15401230,-1603.79,Alderton House,Care Establishment,2 - Operations - Learning Disability,LDP E Cambs Locality - Care,Residential Independent Sector
Cambridgeshire County Council,25-May-17,23386974-15401237,-1603.79,Alderton House,Care Establishment,2 - Operations - Learning Disability,LDP E Cambs Locality - Care,Residential Independent Sector
Cambridgeshire County Council,25-May-17,23387027-15401274,-1603.79,Alderton House,Care Establishment,2 - Operations - Learning Disability,LDP E Cambs Locality - Care,Residential Independent Sector
Cambridgeshire County Council,25-May-17,23387034-15401279,-1603.79,Alderton House,Care Establishment,2 - Operations - Learning Disability,LDP E Cambs Locality - Care,Residential Independent Sector
Cambridgeshire County Council,25-May-17,23387051-15401291,-1603.79,Alderton House,Care Establishment,2 - Operations - Learning Disability,LDP E Cambs Locality - Care,Residential Independent Sector
Cambridgeshire County Council,25-May-17,23387066-15401304,-1603.79,Alderton House,Care Establishment,2 - Operations - Learning Disability,LDP E Cambs Locality - Care,Residential Independent Sector
Cambridgeshire County Council,25-May-17,23387084-15401318,-1603.79,Alderton House,Care Establishment,2 - Operations - Learning Disability,LDP E Cambs Locality - Care,Residential Independent Sector
Cambridgeshire County Council,25-May-17,23387094-15401325,-1603.79,Alderton House,Care Establishment,2 - Operations - Learning Disability,LDP E Cambs Locality - Care,Residential Independent Sector
Cambridgeshire County Council,25-May-17,23387108-15401202,-1603.79,Alderton House,Care Establishment,2 - Operations - Learning Disability,LDP E Cambs Locality - Care,Residential Independent Sector
Cambridgeshire County Council,25-May-17,23386961-15401226,-1603.79,Alderton House,Care Establishment,2 - Operations - Learning Disability,LDP E Cambs Locality - Care,Residential Independent Sector
Cambridgeshire County Council,25-May-17,23387000-15401254,-1603.79,Alderton House,Care Establishment,2 - Operations - Learning Disability,LDP E Cambs Locality - Care,Residential Independent Sector
Cambridgeshire County Council,25-May-17,23387007-15401260,-1603.79,Alderton House,Care Establishment,2 - Operations - Learning Disability,LDP E Cambs Locality - Care,Residential Independent Sector
Cambridgeshire County Council,25-May-17,23387077-15401312,-1603.79,Alderton House,Care Establishment,2 - Operations - Learning Disability,LDP E Cambs Locality - Care,Residential Independent Sector
Cambridgeshire County Council,25-May-17,23387116-15401209,-1603.79,Alderton House,Care Establishment,2 - Operations - Learning Disability,LDP E Cambs Locality - Care,Residential Independent Sector
Cambridgeshire County Council,25-May-17,23387138-15401223,-1603.79,Alderton House,Care Establishment,2 - Operations - Learning Disability,LDP E Cambs Locality - Care,Residential Independent Sector
Cambridgeshire County Council,25-May-17,23386962-15401227,-1603.79,Alderton House,Care Establishment,2 - Operations - Learning Disability,LDP E Cambs Locality - Care,Residential Independent Sector
Cambridgeshire County Council,25-May-17,23386964-15401229,-1603.79,Alderton House,Care Establishment,2 - Operations - Learning Disability,LDP E Cambs Locality - Care,Residential Independent Sector
Cambridgeshire County Council,25-May-17,23386981-15401241,-1603.79,Alderton House,Care Establishment,2 - Operations - Learning Disability,LDP E Cambs Locality - Care,Residential Independent Sector
Cambridgeshire County Council,25-May-17,23386986-15401246,-1603.79,Alderton House,Care Establishment,2 - Operations - Learning Disability,LDP E Cambs Locality - Care,Residential Independent Sector
Cambridgeshire County Council,25-May-17,23386991-15401248,-1603.79,Alderton House,Care Establishment,2 - Operations - Learning Disability,LDP E Cambs Locality - Care,Residential Independent Sector
Cambridgeshire County Council,25-May-17,23387040-15401282,-1603.79,Alderton House,Care Establishment,2 - Operations - Learning Disability,LDP E Cambs Locality - Care,Residential Independent Sector
Cambridgeshire County Council,25-May-17,23387042-15401284,-1603.79,Alderton House,Care Establishment,2 - Operations - Learning Disability,LDP E Cambs Locality - Care,Residential Independent Sector
Cambridgeshire County Council,25-May-17,23387087-15401321,-1603.79,Alderton House,Care Establishment,2 - Operations - Learning Disability,LDP E Cambs Locality - Care,Residential Independent Sector
Cambridgeshire County Council,25-May-17,23387117-15401210,-1603.79,Alderton House,Care Establishment,2 - Operations - Learning Disability,LDP E Cambs Locality - Care,Residential Independent Sector
Cambridgeshire County Council,25-May-17,23386963-15401228,-1603.79,Alderton House,Care Establishment,2 - Operations - Learning Disability,LDP E Cambs Locality - Care,Residential Independent Sector
Cambridgeshire County Council,25-May-17,23386975-15401238,-1603.79,Alderton House,Care Establishment,2 - Operations - Learning Disability,LDP E Cambs Locality - Care,Residential Independent Sector
Cambridgeshire County Council,25-May-17,23386998-15401252,-1603.79,Alderton House,Care Establishment,2 - Operations - Learning Disability,LDP E Cambs Locality - Care,Residential Independent Sector
Cambridgeshire County Council,25-May-17,23386999-15401253,-1603.79,Alderton House,Care Establishment,2 - Operations - Learning Disability,LDP E Cambs Locality - Care,Residential Independent Sector
Cambridgeshire County Council,25-May-17,23387079-15401314,-1603.79,Alderton House,Care Establishment,2 - Operations - Learning Disability,LDP E Cambs Locality - Care,Residential Independent Sector
Cambridgeshire County Council,25-May-17,23387091-15401322,-1603.79,Alderton House,Care Establishment,2 - Operations - Learning Disability,LDP E Cambs Locality - Care,Residential Independent Sector
Cambridgeshire County Council,25-May-17,23387092-15401323,-1603.79,Alderton House,Care Establishment,2 - Operations - Learning Disability,LDP E Cambs Locality - Care,Residential Independent Sector
Cambridgeshire County Council,25-May-17,23387119-15401212,-1603.79,Alderton House,Care Establishment,2 - Operations - Learning Disability,LDP E Cambs Locality - Care,Residential Independent Sector
Cambridgeshire County Council,25-May-17,23386960-15401225,-1603.79,Alderton House,Care Establishment,2 - Operations - Learning Disability,LDP E Cambs Locality - Care,Residential Independent Sector
Cambridgeshire County Council,25-May-17,23387016-15401265,-1603.79,Alderton House,Care Establishment,2 - Operations - Learning Disability,LDP E Cambs Locality - Care,Residential Independent Sector
Cambridgeshire County Council,25-May-17,23387017-15401266,-1603.79,Alderton House,Care Establishment,2 - Operations - Learning Disability,LDP E Cambs Locality - Care,Residential Independent Sector
Cambridgeshire County Council,25-May-17,23387020-15401267,-1603.79,Alderton House,Care Establishment,2 - Operations - Learning Disability,LDP E Cambs Locality - Care,Residential Independent Sector
Cambridgeshire County Council,25-May-17,23387033-15401278,-1603.79,Alderton House,Care Establishment,2 - Operations - Learning Disability,LDP E Cambs Locality - Care,Residential Independent Sector
Cambridgeshire County Council,25-May-17,23387071-15401309,-1603.79,Alderton House,Care Establishment,2 - Operations - Learning Disability,LDP E Cambs Locality - Care,Residential Independent Sector
Cambridgeshire County Council,25-May-17,23387080-15401315,-1603.79,Alderton House,Care Establishment,2 - Operations - Learning Disability,LDP E Cambs Locality - Care,Residential Independent Sector
Cambridgeshire County Council,25-May-17,23387082-15401317,-1603.79,Alderton House,Care Establishment,2 - Operations - Learning Disability,LDP E Cambs Locality - Care,Residential Independent Sector
Cambridgeshire County Council,26-May-17,23130561-15418693,-1568.56,Sixteen Plus,Care Establishment,S&C,Placements - Social Care,Childrens Lodgings
Cambridgeshire County Council,19-May-17,23179522-15369535,-1560,Sixteen Plus,Care Establishment,S&C,Placements - Social Care,Agency Placements - Out County
Cambridgeshire County Council,25-May-17,23156522-15402851,-1550,Cambridge Manor Care Home (Tlc),Care Establishment,3 - Operations - Countywide Services,Countywide PD Service - Care,Nursing Independent Sector
Cambridgeshire County Council,25-May-17,23156532-15402858,-1550,Cambridge Manor Care Home (Tlc),Care Establishment,3 - Operations - Countywide Services,Countywide PD Service - Care,Nursing Independent Sector
Cambridgeshire County Council,25-May-17,23156527-15402853,-1550,Cambridge Manor Care Home (Tlc),Care Establishment,3 - Operations - Countywide Services,Countywide PD Service - Care,Nursing Independent Sector
Cambridgeshire County Council,25-May-17,23156531-15402857,-1550,Cambridge Manor Care Home (Tlc),Care Establishment,3 - Operations - Countywide Services,Countywide PD Service - Care,Nursing Independent Sector
Cambridgeshire County Council,30-May-17,23345422-15427016,-1531,The Mary Hare Primary School,Education,S&C,Placements - Education,Independent School Placements
Cambridgeshire County Council,25-May-17,23155643-15402863,-1450,Cambridge Manor Care Home (Tlc),Care Establishment,2 - Commissioning - Older people Pool,Older People - City & South,Nursing Independent Sector
Cambridgeshire County Council,25-May-17,23155645-15402865,-1450,Cambridge Manor Care Home (Tlc),Care Establishment,2 - Commissioning - Older people Pool,Older People - City & South,Nursing Independent Sector
Cambridgeshire County Council,25-May-17,23155642-15402862,-1450,Cambridge Manor Care Home (Tlc),Care Establishment,2 - Commissioning - Older people Pool,Older People - City & South,Nursing Independent Sector
Cambridgeshire County Council,25-May-17,23155646-15402866,-1450,Cambridge Manor Care Home (Tlc),Care Establishment,2 - Commissioning - Older people Pool,Older People - City & South,Nursing Independent Sector
Cambridgeshire County Council,04-May-17,23158263-15286925,-1400,Woodlands Care Centre,Care Establishment,2 - Commissioning - Older people Pool,Older People Mental Health City & South,Nursing Independent Sector
Cambridgeshire County Council,04-May-17,23158282-15286933,-1400,Woodlands Care Centre,Care Establishment,2 - Commissioning - Older people Pool,Older People Mental Health City & South,Nursing Independent Sector
Cambridgeshire County Council,04-May-17,23155239-15286778,-1400,Woodlands Care Centre,Care Establishment,2 - Commissioning - Older people Pool,Older People Mental Health City & South,Nursing Independent Sector
Cambridgeshire County Council,04-May-17,23158265-15286926,-1400,Woodlands Care Centre,Care Establishment,2 - Commissioning - Older people Pool,Older People Mental Health City & South,Nursing Independent Sector
Cambridgeshire County Council,04-May-17,23155251-15286784,-1400,Woodlands Care Centre,Care Establishment,2 - Commissioning - Older people Pool,Older People Mental Health City & South,Nursing Independent Sector
Cambridgeshire County Council,04-May-17,23158288-15286935,-1400,Woodlands Care Centre,Care Establishment,2 - Commissioning - Older people Pool,Older People Mental Health City & South,Nursing Independent Sector
Cambridgeshire County Council,04-May-17,23158268-15286928,-1400,Woodlands Care Centre,Care Establishment,2 - Commissioning - Older people Pool,Older People Mental Health City & South,Nursing Independent Sector
Cambridgeshire County Council,04-May-17,23158283-15286934,-1400,Woodlands Care Centre,Care Establishment,2 - Commissioning - Older people Pool,Older People Mental Health City & South,Nursing Independent Sector
Cambridgeshire County Council,04-May-17,23155249-15286783,-1400,Woodlands Care Centre,Care Establishment,2 - Commissioning - Older people Pool,Older People Mental Health City & South,Nursing Independent Sector
Cambridgeshire County Council,25-May-17,23074760-15414406,-1390,The Marbrook Centre,Care Establishment,2 - Commissioning - Older people Pool,Older People Mental Health City & South,Nursing Independent Sector
Cambridgeshire County Council,25-May-17,23074763-15414408,-1390,The Marbrook Centre,Care Establishment,2 - Commissioning - Older people Pool,Older People Mental Health City & South,Nursing Independent Sector
Cambridgeshire County Council,25-May-17,23387036-15401281,-1374.68,Alderton House,Care Establishment,2 - Operations - Learning Disability,LDP E Cambs Locality - Care,Residential Independent Sector
Cambridgeshire County Council,12-May-17,23259030-15339169,-1327.43,Redacted Personal Data,Individual,2 - Operations - Learning Disability,LDP South Cambs Locality - Care,Direct Payments - Social Services
Cambridgeshire County Council,12-May-17,23259036-15339175,-1327.43,Redacted Personal Data,Individual,2 - Operations - Learning Disability,LDP South Cambs Locality - Care,Direct Payments - Social Services
Cambridgeshire County Council,12-May-17,23259065-15339204,-1327.43,Redacted Personal Data,Individual,2 - Operations - Learning Disability,LDP South Cambs Locality - Care,Direct Payments - Social Services
Cambridgeshire County Council,12-May-17,23259029-15339168,-1327.43,Redacted Personal Data,Individual,2 - Operations - Learning Disability,LDP South Cambs Locality - Care,Direct Payments - Social Services
Cambridgeshire County Council,12-May-17,23259063-15339202,-1327.43,Redacted Personal Data,Individual,2 - Operations - Learning Disability,LDP South Cambs Locality - Care,Direct Payments - Social Services
Cambridgeshire County Council,12-May-17,23259052-15339191,-1327.43,Redacted Personal Data,Individual,2 - Operations - Learning Disability,LDP South Cambs Locality - Care,Direct Payments - Social Services
Cambridgeshire County Council,12-May-17,23259049-15339188,-1327.43,Redacted Personal Data,Individual,2 - Operations - Learning Disability,LDP South Cambs Locality - Care,Direct Payments - Social Services
Cambridgeshire County Council,25-May-17,23371782-15400988,-1317.11,Alderton House,Care Establishment,2 - Operations - Learning Disability,LDP E Cambs Special Needs,Residential Independent Sector
Cambridgeshire County Council,25-May-17,23371793-15400999,-1317.11,Alderton House,Care Establishment,2 - Operations - Learning Disability,LDP E Cambs Special Needs,Residential Independent Sector
Cambridgeshire County Council,25-May-17,23371822-15401028,-1317.11,Alderton House,Care Establishment,2 - Operations - Learning Disability,LDP E Cambs Special Needs,Residential Independent Sector
Cambridgeshire County Council,25-May-17,23371827-15401033,-1317.11,Alderton House,Care Establishment,2 - Operations - Learning Disability,LDP E Cambs Special Needs,Residential Independent Sector
Cambridgeshire County Council,25-May-17,23371833-15401039,-1317.11,Alderton House,Care Establishment,2 - Operations - Learning Disability,LDP E Cambs Special Needs,Residential Independent Sector
Cambridgeshire County Council,25-May-17,23371863-15401069,-1317.11,Alderton House,Care Establishment,2 - Operations - Learning Disability,LDP E Cambs Special Needs,Residential Independent Sector
Cambridgeshire County Council,25-May-17,23371864-15401070,-1317.11,Alderton House,Care Establishment,2 - Operations - Learning Disability,LDP E Cambs Special Needs,Residential Independent Sector
Cambridgeshire County Council,25-May-17,23371865-15401071,-1317.11,Alderton House,Care Establishment,2 - Operations - Learning Disability,LDP E Cambs Special Needs,Residential Independent Sector
Cambridgeshire County Council,25-May-17,23390846-15401440,-1317.11,Alderton House,Care Establishment,2 - Operations - Learning Disability,LDP E Cambs Special Needs,Residential Independent Sector
Cambridgeshire County Council,25-May-17,23390768-15401362,-1317.11,Alderton House,Care Establishment,2 - Operations - Learning Disability,LDP E Cambs Special Needs,Residential Independent Sector
Cambridgeshire County Council,25-May-17,23390797-15401391,-1317.11,Alderton House,Care Establishment,2 - Operations - Learning Disability,LDP E Cambs Special Needs,Residential Independent Sector
Cambridgeshire County Council,25-May-17,23371789-15400995,-1317.11,Alderton House,Care Establishment,2 - Operations - Learning Disability,LDP E Cambs Special Needs,Residential Independent Sector
Cambridgeshire County Council,25-May-17,23371796-15401002,-1317.11,Alderton House,Care Establishment,2 - Operations - Learning Disability,LDP E Cambs Special Needs,Residential Independent Sector
Cambridgeshire County Council,25-May-17,23371844-15401050,-1317.11,Alderton House,Care Establishment,2 - Operations - Learning Disability,LDP E Cambs Special Needs,Residential Independent Sector
Cambridgeshire County Council,25-May-17,23390838-15401432,-1317.11,Alderton House,Care Establishment,2 - Operations - Learning Disability,LDP E Cambs Special Needs,Residential Independent Sector
Cambridgeshire County Council,25-May-17,23390789-15401383,-1317.11,Alderton House,Care Establishment,2 - Operations - Learning Disability,LDP E Cambs Special Needs,Residential Independent Sector
Cambridgeshire County Council,25-May-17,23390803-15401397,-1317.11,Alderton House,Care Establishment,2 - Operations - Learning Disability,LDP E Cambs Special Needs,Residential Independent Sector
Cambridgeshire County Council,25-May-17,23371823-15401029,-1317.11,Alderton House,Care Establishment,2 - Operations - Learning Disability,LDP E Cambs Special Needs,Residential Independent Sector
Cambridgeshire County Council,25-May-17,23390843-15401437,-1317.11,Alderton House,Care Establishment,2 - Operations - Learning Disability,LDP E Cambs Special Needs,Residential Independent Sector
Cambridgeshire County Council,25-May-17,23390812-15401406,-1317.11,Alderton House,Care Establishment,2 - Operations - Learning Disability,LDP E Cambs Special Needs,Residential Independent Sector
Cambridgeshire County Council,25-May-17,23371876-15400942,-1317.11,Alderton House,Care Establishment,2 - Operations - Learning Disability,LDP E Cambs Special Needs,Residential Independent Sector
Cambridgeshire County Council,25-May-17,23371773-15400979,-1317.11,Alderton House,Care Establishment,2 - Operations - Learning Disability,LDP E Cambs Special Needs,Residential Independent Sector
Cambridgeshire County Council,25-May-17,23371840-15401046,-1317.11,Alderton House,Care Establishment,2 - Operations - Learning Disability,LDP E Cambs Special Needs,Residential Independent Sector
Cambridgeshire County Council,25-May-17,23371867-15401073,-1317.11,Alderton House,Care Establishment,2 - Operations - Learning Disability,LDP E Cambs Special Needs,Residential Independent Sector
Cambridgeshire County Council,25-May-17,23371766-15400972,-1317.11,Alderton House,Care Establishment,2 - Operations - Learning Disability,LDP E Cambs Special Needs,Residential Independent Sector
Cambridgeshire County Council,25-May-17,23371772-15400978,-1317.11,Alderton House,Care Establishment,2 - Operations - Learning Disability,LDP E Cambs Special Needs,Residential Independent Sector
Cambridgeshire County Council,25-May-17,23390773-15401367,-1317.11,Alderton House,Care Establishment,2 - Operations - Learning Disability,LDP E Cambs Special Needs,Residential Independent Sector
Cambridgeshire County Council,25-May-17,23390788-15401382,-1317.11,Alderton House,Care Establishment,2 - Operations - Learning Disability,LDP E Cambs Special Needs,Residential Independent Sector
Cambridgeshire County Council,25-May-17,23390790-15401384,-1317.11,Alderton House,Care Establishment,2 - Operations - Learning Disability,LDP E Cambs Special Needs,Residential Independent Sector
Cambridgeshire County Council,25-May-17,23390798-15401392,-1317.11,Alderton House,Care Establishment,2 - Operations - Learning Disability,LDP E Cambs Special Needs,Residential Independent Sector
Cambridgeshire County Council,25-May-17,23390811-15401405,-1317.11,Alderton House,Care Establishment,2 - Operations - Learning Disability,LDP E Cambs Special Needs,Residential Independent Sector
Cambridgeshire County Council,25-May-17,23390831-15401425,-1317.11,Alderton House,Care Establishment,2 - Operations - Learning Disability,LDP E Cambs Special Needs,Residential Independent Sector
Cambridgeshire County Council,25-May-17,23371783-15400989,-1317.11,Alderton House,Care Establishment,2 - Operations - Learning Disability,LDP E Cambs Special Needs,Residential Independent Sector
Cambridgeshire County Council,25-May-17,23371785-15400991,-1317.11,Alderton House,Care Establishment,2 - Operations - Learning Disability,LDP E Cambs Special Needs,Residential Independent Sector
Cambridgeshire County Council,25-May-17,23390852-15401446,-1317.11,Alderton House,Care Establishment,2 - Operations - Learning Disability,LDP E Cambs Special Needs,Residential Independent Sector
Cambridgeshire County Council,25-May-17,23390772-15401366,-1317.11,Alderton House,Care Establishment,2 - Operations - Learning Disability,LDP E Cambs Special Needs,Residential Independent Sector
Cambridgeshire County Council,25-May-17,23390781-15401375,-1317.11,Alderton House,Care Establishment,2 - Operations - Learning Disability,LDP E Cambs Special Needs,Residential Independent Sector
Cambridgeshire County Council,25-May-17,23390782-15401376,-1317.11,Alderton House,Care Establishment,2 - Operations - Learning Disability,LDP E Cambs Special Needs,Residential Independent Sector
Cambridgeshire County Council,12-May-17,23259273-15336308,-1317.11,Alderton House,Care Establishment,2 - Operations - Learning Disability,LDP E Cambs Special Needs,Residential Independent Sector
Cambridgeshire County Council,25-May-17,23371790-15400996,-1317.11,Alderton House,Care Establishment,2 - Operations - Learning Disability,LDP E Cambs Special Needs,Residential Independent Sector
Cambridgeshire County Council,25-May-17,23371820-15401026,-1317.11,Alderton House,Care Establishment,2 - Operations - Learning Disability,LDP E Cambs Special Needs,Residential Independent Sector
Cambridgeshire County Council,25-May-17,23371855-15401061,-1317.11,Alderton House,Care Establishment,2 - Operations - Learning Disability,LDP E Cambs Special Needs,Residential Independent Sector
Cambridgeshire County Council,25-May-17,23371858-15401064,-1317.11,Alderton House,Care Establishment,2 - Operations - Learning Disability,LDP E Cambs Special Needs,Residential Independent Sector
Cambridgeshire County Council,25-May-17,23371767-15400973,-1317.11,Alderton House,Care Establishment,2 - Operations - Learning Disability,LDP E Cambs Special Needs,Residential Independent Sector
Cambridgeshire County Council,25-May-17,23390857-15401451,-1317.11,Alderton House,Care Establishment,2 - Operations - Learning Disability,LDP E Cambs Special Needs,Residential Independent Sector
Cambridgeshire County Council,25-May-17,23371837-15401043,-1317.11,Alderton House,Care Establishment,2 - Operations - Learning Disability,LDP E Cambs Special Needs,Residential Independent Sector
Cambridgeshire County Council,25-May-17,23371839-15401045,-1317.11,Alderton House,Care Establishment,2 - Operations - Learning Disability,LDP E Cambs Special Needs,Residential Independent Sector
Cambridgeshire County Council,25-May-17,23371868-15401074,-1317.11,Alderton House,Care Establishment,2 - Operations - Learning Disability,LDP E Cambs Special Needs,Residential Independent Sector
Cambridgeshire County Council,25-May-17,23371751-15400957,-1317.11,Alderton House,Care Establishment,2 - Operations - Learning Disability,LDP E Cambs Special Needs,Residential Independent Sector
Cambridgeshire County Council,25-May-17,23390839-15401433,-1317.11,Alderton House,Care Establishment,2 - Operations - Learning Disability,LDP E Cambs Special Needs,Residential Independent Sector
Cambridgeshire County Council,25-May-17,23390761-15401355,-1317.11,Alderton House,Care Establishment,2 - Operations - Learning Disability,LDP E Cambs Special Needs,Residential Independent Sector
Cambridgeshire County Council,25-May-17,23371788-15400994,-1317.11,Alderton House,Care Establishment,2 - Operations - Learning Disability,LDP E Cambs Special Needs,Residential Independent Sector
Cambridgeshire County Council,25-May-17,23371850-15401056,-1317.11,Alderton House,Care Establishment,2 - Operations - Learning Disability,LDP E Cambs Special Needs,Residential Independent Sector
Cambridgeshire County Council,25-May-17,23371749-15400955,-1317.11,Alderton House,Care Establishment,2 - Operations - Learning Disability,LDP E Cambs Special Needs,Residential Independent Sector
Cambridgeshire County Council,25-May-17,23371750-15400956,-1317.11,Alderton House,Care Establishment,2 - Operations - Learning Disability,LDP E Cambs Special Needs,Residential Independent Sector
Cambridgeshire County Council,25-May-17,23371754-15400960,-1317.11,Alderton House,Care Establishment,2 - Operations - Learning Disability,LDP E Cambs Special Needs,Residential Independent Sector
Cambridgeshire County Council,25-May-17,23371756-15400962,-1317.11,Alderton House,Care Establishment,2 - Operations - Learning Disability,LDP E Cambs Special Needs,Residential Independent Sector
Cambridgeshire County Council,25-May-17,23371764-15400970,-1317.11,Alderton House,Care Establishment,2 - Operations - Learning Disability,LDP E Cambs Special Needs,Residential Independent Sector
Cambridgeshire County Council,25-May-17,23390850-15401444,-1317.11,Alderton House,Care Establishment,2 - Operations - Learning Disability,LDP E Cambs Special Needs,Residential Independent Sector
Cambridgeshire County Council,25-May-17,23390746-15401340,-1317.11,Alderton House,Care Establishment,2 - Operations - Learning Disability,LDP E Cambs Special Needs,Residential Independent Sector
Cambridgeshire County Council,25-May-17,23390805-15401399,-1317.11,Alderton House,Care Establishment,2 - Operations - Learning Disability,LDP E Cambs Special Needs,Residential Independent Sector
Cambridgeshire County Council,25-May-17,23390825-15401419,-1317.11,Alderton House,Care Establishment,2 - Operations - Learning Disability,LDP E Cambs Special Needs,Residential Independent Sector
Cambridgeshire County Council,04-May-17,23157833-15291149,-1300,Gracefield (Ld),Care Establishment,4 - Commissioning - Mental Health & Supporting People,Cambridge Mental Health team,Nursing Independent Sector
Cambridgeshire County Council,04-May-17,23157828-15291144,-1300,Gracefield (Ld),Care Establishment,4 - Commissioning - Mental Health & Supporting People,Cambridge Mental Health team,Nursing Independent Sector
Cambridgeshire County Council,04-May-17,23157839-15291141,-1300,Gracefield (Ld),Care Establishment,4 - Commissioning - Mental Health & Supporting People,Cambridge Mental Health team,Nursing Independent Sector
Cambridgeshire County Council,04-May-17,23157836-15291138,-1300,Gracefield (Ld),Care Establishment,4 - Commissioning - Mental Health & Supporting People,Cambridge Mental Health team,Nursing Independent Sector
Cambridgeshire County Council,04-May-17,23157841-15291143,-1300,Gracefield (Ld),Care Establishment,4 - Commissioning - Mental Health & Supporting People,Cambridge Mental Health team,Nursing Independent Sector
Cambridgeshire County Council,04-May-17,23157835-15291137,-1300,Gracefield (Ld),Care Establishment,4 - Commissioning - Mental Health & Supporting People,Cambridge Mental Health team,Nursing Independent Sector
Cambridgeshire County Council,04-May-17,23157832-15291148,-1300,Gracefield (Ld),Care Establishment,4 - Commissioning - Mental Health & Supporting People,Cambridge Mental Health team,Nursing Independent Sector
Cambridgeshire County Council,04-May-17,23157831-15291147,-1300,Gracefield (Ld),Care Establishment,4 - Commissioning - Mental Health & Supporting People,Cambridge Mental Health team,Nursing Independent Sector
Cambridgeshire County Council,04-May-17,23100098-15285406,-1290,Barchester Healthcare Homes Ltd,Care Establishment,2 - Commissioning - Older people Pool,East Cambs - O P Team,Nursing Independent Sector
Cambridgeshire County Council,04-May-17,23100102-15285408,-1290,Barchester Healthcare Homes Ltd,Care Establishment,2 - Commissioning - Older people Pool,East Cambs - O P Team,Nursing Independent Sector
Cambridgeshire County Council,04-May-17,23100104-15285410,-1290,Barchester Healthcare Homes Ltd,Care Establishment,2 - Commissioning - Older people Pool,East Cambs - O P Team,Nursing Independent Sector
Cambridgeshire County Council,25-May-17,23154411-15400000,-1290,Oaklands Care Home,Care Establishment,2 - Commissioning - Older people Pool,East Cambs - O P Team,Nursing Independent Sector
Cambridgeshire County Council,04-May-17,23100103-15285409,-1290,Barchester Healthcare Homes Ltd,Care Establishment,2 - Commissioning - Older people Pool,East Cambs - O P Team,Nursing Independent Sector
Cambridgeshire County Council,25-May-17,23157385-15400022,-1290,Oaklands Care Home,Care Establishment,2 - Commissioning - Older people Pool,East Cambs - O P Team,Nursing Independent Sector
Cambridgeshire County Council,04-May-17,23100107-15285411,-1290,Barchester Healthcare Homes Ltd,Care Establishment,2 - Commissioning - Older people Pool,East Cambs - O P Team,Nursing Independent Sector
Cambridgeshire County Council,25-May-17,23154408-15399997,-1290,Oaklands Care Home,Care Establishment,2 - Commissioning - Older people Pool,East Cambs - O P Team,Nursing Independent Sector
Cambridgeshire County Council,04-May-17,23100108-15285412,-1290,Barchester Healthcare Homes Ltd,Care Establishment,2 - Commissioning - Older people Pool,East Cambs - O P Team,Nursing Independent Sector
Cambridgeshire County Council,25-May-17,23154407-15399996,-1290,Oaklands Care Home,Care Establishment,2 - Commissioning - Older people Pool,East Cambs - O P Team,Nursing Independent Sector
Cambridgeshire County Council,25-May-17,23371918-15400949,-1287.93,Alderton House,Care Establishment,2 - Operations - Learning Disability,LDP E Cambs Locality - Care,Residential Independent Sector
Cambridgeshire County Council,25-May-17,23152025-15388671,-1275.86,The Cambridge Nursing Centre,Care Establishment,5 - Commissioning - Mental Health & Supporting People,OP Blocks - Care Placements,Nursing Independent Sector
Cambridgeshire County Council,25-May-17,23335489-15389860,-1266.59,2 Cheveril Lane (Voyage),Care Establishment,2 - Operations - Learning Disability,LDP Hunts special needs,Supported Living
Cambridgeshire County Council,25-May-17,23335497-15389868,-1266.59,2 Cheveril Lane (Voyage),Care Establishment,2 - Operations - Learning Disability,LDP Huntingdonshire Locality - Care,Supported Living
Cambridgeshire County Council,25-May-17,23388187-15389913,-1266.59,2 Cheveril Lane (Voyage),Care Establishment,2 - Operations - Learning Disability,LDP Hunts special needs,Supported Living
Cambridgeshire County Council,25-May-17,23335491-15389862,-1266.59,2 Cheveril Lane (Voyage),Care Establishment,2 - Operations - Learning Disability,LDP Huntingdonshire Locality - Care,Supported Living
Cambridgeshire County Council,25-May-17,23335499-15389870,-1266.59,2 Cheveril Lane (Voyage),Care Establishment,2 - Operations - Learning Disability,LDP Huntingdonshire Locality - Care,Supported Living
Cambridgeshire County Council,25-May-17,23335503-15389874,-1266.59,2 Cheveril Lane (Voyage),Care Establishment,2 - Operations - Learning Disability,LDP Hunts special needs,Supported Living
Cambridgeshire County Council,25-May-17,23335500-15389871,-1266.59,2 Cheveril Lane (Voyage),Care Establishment,2 - Operations - Learning Disability,LDP Huntingdonshire Locality - Care,Supported Living
Cambridgeshire County Council,25-May-17,23388176-15389903,-1266.59,2 Cheveril Lane (Voyage),Care Establishment,2 - Operations - Learning Disability,LDP Huntingdonshire Locality - Care,Supported Living
Cambridgeshire County Council,25-May-17,23388179-15389906,-1266.59,2 Cheveril Lane (Voyage),Care Establishment,2 - Operations - Learning Disability,LDP Huntingdonshire Locality - Care,Supported Living
Cambridgeshire County Council,25-May-17,23388189-15389915,-1266.59,2 Cheveril Lane (Voyage),Care Establishment,2 - Operations - Learning Disability,LDP Huntingdonshire Locality - Care,Supported Living
Cambridgeshire County Council,25-May-17,23388190-15389916,-1266.59,2 Cheveril Lane (Voyage),Care Establishment,2 - Operations - Learning Disability,LDP Huntingdonshire Locality - Care,Supported Living
Cambridgeshire County Council,25-May-17,23335502-15389873,-1266.59,2 Cheveril Lane (Voyage),Care Establishment,2 - Operations - Learning Disability,LDP Hunts special needs,Supported Living
Cambridgeshire County Council,25-May-17,23335507-15389878,-1266.59,2 Cheveril Lane (Voyage),Care Establishment,2 - Operations - Learning Disability,LDP Huntingdonshire Locality - Care,Supported Living
Cambridgeshire County Council,25-May-17,23335495-15389866,-1266.59,2 Cheveril Lane (Voyage),Care Establishment,2 - Operations - Learning Disability,LDP Huntingdonshire Locality - Care,Supported Living
Cambridgeshire County Council,25-May-17,23388166-15389896,-1266.59,2 Cheveril Lane (Voyage),Care Establishment,2 - Operations - Learning Disability,LDP Huntingdonshire Locality - Care,Supported Living
Cambridgeshire County Council,25-May-17,23388169-15389898,-1266.59,2 Cheveril Lane (Voyage),Care Establishment,2 - Operations - Learning Disability,LDP Hunts special needs,Supported Living
Cambridgeshire County Council,25-May-17,23388180-15389907,-1266.59,2 Cheveril Lane (Voyage),Care Establishment,2 - Operations - Learning Disability,LDP Hunts special needs,Supported Living
Cambridgeshire County Council,25-May-17,23388182-15389909,-1266.59,2 Cheveril Lane (Voyage),Care Establishment,2 - Operations - Learning Disability,LDP Huntingdonshire Locality - Care,Supported Living
Cambridgeshire County Council,25-May-17,23263384-15412305,-1251.27,Dimensions (Uk) Ltd,Care Establishment,2 - Operations - Learning Disability,LDP City Locality - Care,Supported Living
Cambridgeshire County Council,25-May-17,23263385-15412306,-1251.27,Dimensions (Uk) Ltd,Care Establishment,2 - Operations - Learning Disability,LDP City Locality - Care,Supported Living
Cambridgeshire County Council,25-May-17,23263390-15412311,-1251.27,Dimensions (Uk) Ltd,Care Establishment,2 - Operations - Learning Disability,LDP City Locality - Care,Supported Living
Cambridgeshire County Council,25-May-17,23263391-15412312,-1251.27,Dimensions (Uk) Ltd,Care Establishment,2 - Operations - Learning Disability,LDP City Locality - Care,Supported Living
Cambridgeshire County Council,25-May-17,23263382-15412303,-1251.27,Dimensions (Uk) Ltd,Care Establishment,2 - Operations - Learning Disability,LDP City Locality - Care,Supported Living
Cambridgeshire County Council,04-May-17,23139350-15285989,-1250.25,Eden View,Care Establishment,3 - Operations - Countywide Services,Countywide PD Service - Care,Nursing Independent Sector
Cambridgeshire County Council,04-May-17,23162291-15286010,-1250.25,Eden View,Care Establishment,3 - Operations - Countywide Services,Countywide PD Service - Care,Nursing Independent Sector
Cambridgeshire County Council,04-May-17,23162298-15286017,-1250.25,Eden View,Care Establishment,3 - Operations - Countywide Services,Countywide PD Service - Care,Nursing Independent Sector
Cambridgeshire County Council,04-May-17,23162295-15286014,-1250.25,Eden View,Care Establishment,3 - Operations - Countywide Services,Countywide PD Service - Care,Nursing Independent Sector
Cambridgeshire County Council,04-May-17,23139355-15285994,-1250.25,Eden View,Care Establishment,3 - Operations - Countywide Services,Countywide PD Service - Care,Nursing Independent Sector
Cambridgeshire County Council,04-May-17,23139348-15286006,-1250.25,Eden View,Care Establishment,3 - Operations - Countywide Services,Countywide PD Service - Care,Nursing Independent Sector
Cambridgeshire County Council,04-May-17,23162294-15286013,-1250.25,Eden View,Care Establishment,3 - Operations - Countywide Services,Countywide PD Service - Care,Nursing Independent Sector
Cambridgeshire County Council,04-May-17,23139343-15286001,-1250.25,Eden View,Care Establishment,3 - Operations - Countywide Services,Countywide PD Service - Care,Nursing Independent Sector
Cambridgeshire County Council,04-May-17,23139344-15286002,-1250.25,Eden View,Care Establishment,3 - Operations - Countywide Services,Countywide PD Service - Care,Nursing Independent Sector
Cambridgeshire County Council,04-May-17,23139346-15286004,-1250.25,Eden View,Care Establishment,3 - Operations - Countywide Services,Countywide PD Service - Care,Nursing Independent Sector
Cambridgeshire County Council,04-May-17,23162303-15286022,-1250.25,Eden View,Care Establishment,3 - Operations - Countywide Services,Countywide PD Service - Care,Nursing Independent Sector
Cambridgeshire County Council,04-May-17,23139345-15286003,-1250.25,Eden View,Care Establishment,3 - Operations - Countywide Services,Countywide PD Service - Care,Nursing Independent Sector
Cambridgeshire County Council,04-May-17,23162293-15286012,-1250.25,Eden View,Care Establishment,3 - Operations - Countywide Services,Countywide PD Service - Care,Nursing Independent Sector
Cambridgeshire County Council,25-May-17,23158276-15400041,-1244.25,Oaklands Care Home,Care Establishment,3 - Operations - Countywide Services,Countywide PD Service - Care,Nursing Independent Sector
Cambridgeshire County Council,25-May-17,23158280-15400043,-1244.25,Oaklands Care Home,Care Establishment,3 - Operations - Countywide Services,Countywide PD Service - Care,Nursing Independent Sector
Cambridgeshire County Council,25-May-17,23158261-15400039,-1244.25,Oaklands Care Home,Care Establishment,3 - Operations - Countywide Services,Countywide PD Service - Care,Nursing Independent Sector
Cambridgeshire County Council,25-May-17,23155242-15400015,-1244.25,Oaklands Care Home,Care Establishment,3 - Operations - Countywide Services,Countywide PD Service - Care,Nursing Independent Sector
Cambridgeshire County Council,22-May-17,22616642-15374198,-1214.4,Sanctuary Housing Association,Care Establishment,2 - Commissioning - Older people Pool,Older People - City & South,SDS - PB Travel
Cambridgeshire County Council,25-May-17,23158499-15403719,-1201.46,Cottenham Court Nursing Home,Care Establishment,3 - Operations - Countywide Services,Countywide PD Service - Care,Nursing Independent Sector
Cambridgeshire County Council,25-May-17,23158507-15403727,-1201.46,Cottenham Court Nursing Home,Care Establishment,3 - Operations - Countywide Services,Countywide PD Service - Care,Nursing Independent Sector
Cambridgeshire County Council,25-May-17,23158500-15403720,-1201.46,Cottenham Court Nursing Home,Care Establishment,3 - Operations - Countywide Services,Countywide PD Service - Care,Nursing Independent Sector
Cambridgeshire County Council,25-May-17,23158503-15403723,-1201.46,Cottenham Court Nursing Home,Care Establishment,3 - Operations - Countywide Services,Countywide PD Service - Care,Nursing Independent Sector
Cambridgeshire County Council,04-May-17,23154397-15286745,-1200,Woodlands Care Centre,Care Establishment,2 - Commissioning - Older people Pool,Older People Mental Health City & South,Nursing Independent Sector
Cambridgeshire County Council,25-May-17,23156605-15400008,-1200,Oaklands Care Home,Care Establishment,4 - Commissioning - Mental Health & Supporting People,Cambridge Mental Health team,Nursing Independent Sector
Cambridgeshire County Council,04-May-17,23151537-15286643,-1200,Woodlands Care Centre,Care Establishment,2 - Commissioning - Older people Pool,Older People Mental Health City & South,Nursing Independent Sector
Cambridgeshire County Council,25-May-17,23156600-15400003,-1200,Oaklands Care Home,Care Establishment,4 - Commissioning - Mental Health & Supporting People,Cambridge Mental Health team,Nursing Independent Sector
Cambridgeshire County Council,25-May-17,23156603-15400006,-1200,Oaklands Care Home,Care Establishment,4 - Commissioning - Mental Health & Supporting People,Cambridge Mental Health team,Nursing Independent Sector
Cambridgeshire County Council,25-May-17,23163043-15400644,-1200,Soham Lodge,Care Establishment,2 - Commissioning - Older people Pool,East Cambs - O P Team,Nursing Independent Sector
Cambridgeshire County Council,04-May-17,23151557-15286667,-1200,Woodlands Care Centre,Care Establishment,2 - Commissioning - Older people Pool,Older People Mental Health City & South,Nursing Independent Sector
Cambridgeshire County Council,04-May-17,23151552-15286640,-1200,Woodlands Care Centre,Care Establishment,2 - Commissioning - Older people Pool,Older People Mental Health City & South,Nursing Independent Sector
Cambridgeshire County Council,04-May-17,23151525-15286641,-1200,Woodlands Care Centre,Care Establishment,2 - Commissioning - Older people Pool,Older People Mental Health City & South,Nursing Independent Sector
Cambridgeshire County Council,04-May-17,23151546-15286637,-1200,Woodlands Care Centre,Care Establishment,2 - Commissioning - Older people Pool,Older People Mental Health City & South,Nursing Independent Sector
Cambridgeshire County Council,25-May-17,23156601-15400004,-1200,Oaklands Care Home,Care Establishment,4 - Commissioning - Mental Health & Supporting People,Cambridge Mental Health team,Nursing Independent Sector
Cambridgeshire County Council,04-May-17,23157660-15288306,-1198.04,Caretech Community Services,Care Establishment,2 - Operations - Learning Disability,LDP South Cambs - Special Needs,Residential Independent Sector
Cambridgeshire County Council,04-May-17,23157663-15288309,-1198.04,Caretech Community Services,Care Establishment,2 - Operations - Learning Disability,LDP South Cambs - Special Needs,Residential Independent Sector
Cambridgeshire County Council,04-May-17,23157682-15288328,-1198.04,Caretech Community Services,Care Establishment,2 - Operations - Learning Disability,LDP South Cambs - Special Needs,Residential Independent Sector
Cambridgeshire County Council,12-May-17,23260537-15337005,-1198.04,Caretech Community Services,Care Establishment,2 - Operations - Learning Disability,LDP South Cambs - Special Needs,Residential Independent Sector
Cambridgeshire County Council,12-May-17,23263508-15337019,-1198.04,Caretech Community Services,Care Establishment,2 - Operations - Learning Disability,LDP South Cambs Locality - Care,Residential Independent Sector
Cambridgeshire County Council,12-May-17,23263531-15337049,-1198.04,Caretech Community Services,Care Establishment,2 - Operations - Learning Disability,LDP South Cambs - Special Needs,Residential Independent Sector
Cambridgeshire County Council,12-May-17,23263534-15337052,-1198.04,Caretech Community Services,Care Establishment,2 - Operations - Learning Disability,LDP South Cambs Locality - Care,Residential Independent Sector
Cambridgeshire County Council,18-May-17,23339207-15363791,-1198.04,Caretech Community Services,Care Establishment,2 - Operations - Learning Disability,LDP South Cambs - Special Needs,Residential Independent Sector
Cambridgeshire County Council,18-May-17,23339215-15363799,-1198.04,Caretech Community Services,Care Establishment,2 - Operations - Learning Disability,LDP South Cambs - Special Needs,Residential Independent Sector
Cambridgeshire County Council,25-May-17,23387610-15397978,-1198.04,Caretech Community Services,Care Establishment,2 - Operations - Learning Disability,LDP South Cambs Locality - Care,Residential Independent Sector
Cambridgeshire County Council,25-May-17,23387617-15397985,-1198.04,Caretech Community Services,Care Establishment,2 - Operations - Learning Disability,LDP South Cambs - Special Needs,Residential Independent Sector
Cambridgeshire County Council,25-May-17,23387654-15398022,-1198.04,Caretech Community Services,Care Establishment,2 - Operations - Learning Disability,LDP South Cambs - Special Needs,Residential Independent Sector
Cambridgeshire County Council,04-May-17,23157640-15288283,-1198.04,Caretech Community Services,Care Establishment,2 - Operations - Learning Disability,LDP South Cambs Locality - Care,Residential Independent Sector
Cambridgeshire County Council,04-May-17,23157645-15288288,-1198.04,Caretech Community Services,Care Establishment,2 - Operations - Learning Disability,LDP South Cambs - Special Needs,Residential Independent Sector
Cambridgeshire County Council,04-May-17,23157662-15288308,-1198.04,Caretech Community Services,Care Establishment,2 - Operations - Learning Disability,LDP South Cambs Locality - Care,Residential Independent Sector
Cambridgeshire County Council,04-May-17,23157668-15288314,-1198.04,Caretech Community Services,Care Establishment,2 - Operations - Learning Disability,LDP South Cambs Locality - Care,Residential Independent Sector
Cambridgeshire County Council,12-May-17,23260533-15337001,-1198.04,Caretech Community Services,Care Establishment,2 - Operations - Learning Disability,LDP South Cambs Locality - Care,Residential Independent Sector
Cambridgeshire County Council,12-May-17,23260534-15337002,-1198.04,Caretech Community Services,Care Establishment,2 - Operations - Learning Disability,LDP South Cambs Locality - Care,Residential Independent Sector
Cambridgeshire County Council,12-May-17,23263512-15337023,-1198.04,Caretech Community Services,Care Establishment,2 - Operations - Learning Disability,LDP South Cambs - Special Needs,Residential Independent Sector
Cambridgeshire County Council,12-May-17,23263537-15337055,-1198.04,Caretech Community Services,Care Establishment,2 - Operations - Learning Disability,LDP South Cambs Locality - Care,Residential Independent Sector
Cambridgeshire County Council,18-May-17,23339204-15363784,-1198.04,Caretech Community Services,Care Establishment,2 - Operations - Learning Disability,LDP South Cambs Locality - Care,Residential Independent Sector
Cambridgeshire County Council,25-May-17,23387629-15397997,-1198.04,Caretech Community Services,Care Establishment,2 - Operations - Learning Disability,LDP South Cambs - Special Needs,Residential Independent Sector
Cambridgeshire County Council,25-May-17,23387635-15398003,-1198.04,Caretech Community Services,Care Establishment,2 - Operations - Learning Disability,LDP South Cambs - Special Needs,Residential Independent Sector
Cambridgeshire County Council,25-May-17,23387636-15398004,-1198.04,Caretech Community Services,Care Establishment,2 - Operations - Learning Disability,LDP South Cambs - Special Needs,Residential Independent Sector
Cambridgeshire County Council,25-May-17,23387639-15398007,-1198.04,Caretech Community Services,Care Establishment,2 - Operations - Learning Disability,LDP South Cambs Locality - Care,Residential Independent Sector
Cambridgeshire County Council,25-May-17,23387641-15398009,-1198.04,Caretech Community Services,Care Establishment,2 - Operations - Learning Disability,LDP South Cambs - Special Needs,Residential Independent Sector
Cambridgeshire County Council,25-May-17,23387646-15398014,-1198.04,Caretech Community Services,Care Establishment,2 - Operations - Learning Disability,LDP South Cambs Locality - Care,Residential Independent Sector
Cambridgeshire County Council,25-May-17,23387648-15398016,-1198.04,Caretech Community Services,Care Establishment,2 - Operations - Learning Disability,LDP South Cambs Locality - Care,Residential Independent Sector
Cambridgeshire County Council,25-May-17,23387660-15398028,-1198.04,Caretech Community Services,Care Establishment,2 - Operations - Learning Disability,LDP South Cambs Locality - Care,Residential Independent Sector
Cambridgeshire County Council,04-May-17,23157644-15288287,-1198.04,Caretech Community Services,Care Establishment,2 - Operations - Learning Disability,LDP South Cambs Locality - Care,Residential Independent Sector
Cambridgeshire County Council,04-May-17,23157647-15288290,-1198.04,Caretech Community Services,Care Establishment,2 - Operations - Learning Disability,LDP South Cambs Locality - Care,Residential Independent Sector
Cambridgeshire County Council,04-May-17,23157655-15288298,-1198.04,Caretech Community Services,Care Establishment,2 - Operations - Learning Disability,LDP South Cambs - Special Needs,Residential Independent Sector
Cambridgeshire County Council,04-May-17,23157658-15288304,-1198.04,Caretech Community Services,Care Establishment,2 - Operations - Learning Disability,LDP South Cambs Locality - Care,Residential Independent Sector
Cambridgeshire County Council,12-May-17,23260535-15337003,-1198.04,Caretech Community Services,Care Establishment,2 - Operations - Learning Disability,LDP South Cambs Locality - Care,Residential Independent Sector
Cambridgeshire County Council,12-May-17,23263499-15337010,-1198.04,Caretech Community Services,Care Establishment,2 - Operations - Learning Disability,LDP South Cambs - Special Needs,Residential Independent Sector
Cambridgeshire County Council,12-May-17,23263511-15337022,-1198.04,Caretech Community Services,Care Establishment,2 - Operations - Learning Disability,LDP South Cambs Locality - Care,Residential Independent Sector
Cambridgeshire County Council,12-May-17,23263539-15337057,-1198.04,Caretech Community Services,Care Establishment,2 - Operations - Learning Disability,LDP South Cambs - Special Needs,Residential Independent Sector
Cambridgeshire County Council,18-May-17,23339213-15363797,-1198.04,Caretech Community Services,Care Establishment,2 - Operations - Learning Disability,LDP South Cambs - Special Needs,Residential Independent Sector
Cambridgeshire County Council,18-May-17,23339214-15363798,-1198.04,Caretech Community Services,Care Establishment,2 - Operations - Learning Disability,LDP South Cambs Locality - Care,Residential Independent Sector
Cambridgeshire County Council,18-May-17,23339218-15363802,-1198.04,Caretech Community Services,Care Establishment,2 - Operations - Learning Disability,LDP South Cambs Locality - Care,Residential Independent Sector
Cambridgeshire County Council,18-May-17,23339220-15363804,-1198.04,Caretech Community Services,Care Establishment,2 - Operations - Learning Disability,LDP South Cambs Locality - Care,Residential Independent Sector
Cambridgeshire County Council,18-May-17,23339161-15363816,-1198.04,Caretech Community Services,Care Establishment,2 - Operations - Learning Disability,LDP South Cambs - Special Needs,Residential Independent Sector
Cambridgeshire County Council,18-May-17,23339162-15363817,-1198.04,Caretech Community Services,Care Establishment,2 - Operations - Learning Disability,LDP South Cambs Locality - Care,Residential Independent Sector
Cambridgeshire County Council,25-May-17,23387645-15398013,-1198.04,Caretech Community Services,Care Establishment,2 - Operations - Learning Disability,LDP South Cambs Locality - Care,Residential Independent Sector
Cambridgeshire County Council,04-May-17,23157648-15288291,-1198.04,Caretech Community Services,Care Establishment,2 - Operations - Learning Disability,LDP South Cambs - Special Needs,Residential Independent Sector
Cambridgeshire County Council,04-May-17,23157659-15288305,-1198.04,Caretech Community Services,Care Establishment,2 - Operations - Learning Disability,LDP South Cambs Locality - Care,Residential Independent Sector
Cambridgeshire County Council,04-May-17,23157674-15288320,-1198.04,Caretech Community Services,Care Establishment,2 - Operations - Learning Disability,LDP South Cambs - Special Needs,Residential Independent Sector
Cambridgeshire County Council,04-May-17,23157686-15288332,-1198.04,Caretech Community Services,Care Establishment,2 - Operations - Learning Disability,LDP South Cambs Locality - Care,Residential Independent Sector
Cambridgeshire County Council,12-May-17,23260531-15336999,-1198.04,Caretech Community Services,Care Establishment,2 - Operations - Learning Disability,LDP South Cambs - Special Needs,Residential Independent Sector
Cambridgeshire County Council,12-May-17,23263501-15337012,-1198.04,Caretech Community Services,Care Establishment,2 - Operations - Learning Disability,LDP South Cambs - Special Needs,Residential Independent Sector
Cambridgeshire County Council,12-May-17,23263519-15337037,-1198.04,Caretech Community Services,Care Establishment,2 - Operations - Learning Disability,LDP South Cambs - Special Needs,Residential Independent Sector
Cambridgeshire County Council,12-May-17,23263530-15337048,-1198.04,Caretech Community Services,Care Establishment,2 - Operations - Learning Disability,LDP South Cambs Locality - Care,Residential Independent Sector
Cambridgeshire County Council,18-May-17,23339160-15363815,-1198.04,Caretech Community Services,Care Establishment,2 - Operations - Learning Disability,LDP South Cambs - Special Needs,Residential Independent Sector
Cambridgeshire County Council,18-May-17,23339180-15363835,-1198.04,Caretech Community Services,Care Establishment,2 - Operations - Learning Disability,LDP South Cambs - Special Needs,Residential Independent Sector
Cambridgeshire County Council,18-May-17,23339183-15363838,-1198.04,Caretech Community Services,Care Establishment,2 - Operations - Learning Disability,LDP South Cambs Locality - Care,Residential Independent Sector
Cambridgeshire County Council,25-May-17,23387615-15397983,-1198.04,Caretech Community Services,Care Establishment,2 - Operations - Learning Disability,LDP South Cambs Locality - Care,Residential Independent Sector
Cambridgeshire County Council,25-May-17,23387625-15397993,-1198.04,Caretech Community Services,Care Establishment,2 - Operations - Learning Disability,LDP South Cambs Locality - Care,Residential Independent Sector
Cambridgeshire County Council,25-May-17,23387658-15398026,-1198.04,Caretech Community Services,Care Establishment,2 - Operations - Learning Disability,LDP South Cambs Locality - Care,Residential Independent Sector
Cambridgeshire County Council,25-May-17,23387667-15398035,-1198.04,Caretech Community Services,Care Establishment,2 - Operations - Learning Disability,LDP South Cambs Locality - Care,Residential Independent Sector
Cambridgeshire County Council,04-May-17,23157641-15288284,-1198.04,Caretech Community Services,Care Establishment,2 - Operations - Learning Disability,LDP South Cambs Locality - Care,Residential Independent Sector
Cambridgeshire County Council,04-May-17,23157675-15288321,-1198.04,Caretech Community Services,Care Establishment,2 - Operations - Learning Disability,LDP South Cambs - Special Needs,Residential Independent Sector
Cambridgeshire County Council,12-May-17,23263500-15337011,-1198.04,Caretech Community Services,Care Establishment,2 - Operations - Learning Disability,LDP South Cambs Locality - Care,Residential Independent Sector
Cambridgeshire County Council,12-May-17,23263504-15337015,-1198.04,Caretech Community Services,Care Establishment,2 - Operations - Learning Disability,LDP South Cambs - Special Needs,Residential Independent Sector
Cambridgeshire County Council,12-May-17,23263516-15337027,-1198.04,Caretech Community Services,Care Establishment,2 - Operations - Learning Disability,LDP South Cambs - Special Needs,Residential Independent Sector
Cambridgeshire County Council,18-May-17,23339199-15363779,-1198.04,Caretech Community Services,Care Establishment,2 - Operations - Learning Disability,LDP South Cambs - Special Needs,Residential Independent Sector
Cambridgeshire County Council,18-May-17,23339206-15363790,-1198.04,Caretech Community Services,Care Establishment,2 - Operations - Learning Disability,LDP South Cambs Locality - Care,Residential Independent Sector
Cambridgeshire County Council,25-May-17,23387628-15397996,-1198.04,Caretech Community Services,Care Establishment,2 - Operations - Learning Disability,LDP South Cambs Locality - Care,Residential Independent Sector
Cambridgeshire County Council,25-May-17,23387630-15397998,-1198.04,Caretech Community Services,Care Establishment,2 - Operations - Learning Disability,LDP South Cambs - Special Needs,Residential Independent Sector
Cambridgeshire County Council,25-May-17,23387655-15398023,-1198.04,Caretech Community Services,Care Establishment,2 - Operations - Learning Disability,LDP South Cambs - Special Needs,Residential Independent Sector
Cambridgeshire County Council,25-May-17,23387664-15398032,-1198.04,Caretech Community Services,Care Establishment,2 - Operations - Learning Disability,LDP South Cambs - Special Needs,Residential Independent Sector
Cambridgeshire County Council,04-May-17,23157649-15288292,-1198.04,Caretech Community Services,Care Establishment,2 - Operations - Learning Disability,LDP South Cambs Locality - Care,Residential Independent Sector
Cambridgeshire County Council,04-May-17,23157657-15288300,-1198.04,Caretech Community Services,Care Establishment,2 - Operations - Learning Disability,LDP South Cambs Locality - Care,Residential Independent Sector
Cambridgeshire County Council,04-May-17,23157639-15288303,-1198.04,Caretech Community Services,Care Establishment,2 - Operations - Learning Disability,LDP South Cambs - Special Needs,Residential Independent Sector
Cambridgeshire County Council,04-May-17,23157678-15288324,-1198.04,Caretech Community Services,Care Establishment,2 - Operations - Learning Disability,LDP South Cambs - Special Needs,Residential Independent Sector
Cambridgeshire County Council,12-May-17,23260536-15337004,-1198.04,Caretech Community Services,Care Establishment,2 - Operations - Learning Disability,LDP South Cambs Locality - Care,Residential Independent Sector
Cambridgeshire County Council,12-May-17,23263513-15337024,-1198.04,Caretech Community Services,Care Establishment,2 - Operations - Learning Disability,LDP South Cambs - Special Needs,Residential Independent Sector
Cambridgeshire County Council,12-May-17,23263529-15337047,-1198.04,Caretech Community Services,Care Establishment,2 - Operations - Learning Disability,LDP South Cambs Locality - Care,Residential Independent Sector
Cambridgeshire County Council,12-May-17,23263532-15337050,-1198.04,Caretech Community Services,Care Establishment,2 - Operations - Learning Disability,LDP South Cambs - Special Needs,Residential Independent Sector
Cambridgeshire County Council,18-May-17,23339187-15363767,-1198.04,Caretech Community Services,Care Establishment,2 - Operations - Learning Disability,LDP South Cambs - Special Needs,Residential Independent Sector
Cambridgeshire County Council,18-May-17,23339219-15363803,-1198.04,Caretech Community Services,Care Establishment,2 - Operations - Learning Disability,LDP South Cambs Locality - Care,Residential Independent Sector
Cambridgeshire County Council,18-May-17,23339167-15363822,-1198.04,Caretech Community Services,Care Establishment,2 - Operations - Learning Disability,LDP South Cambs Locality - Care,Residential Independent Sector
Cambridgeshire County Council,18-May-17,23339186-15363841,-1198.04,Caretech Community Services,Care Establishment,2 - Operations - Learning Disability,LDP South Cambs - Special Needs,Residential Independent Sector
Cambridgeshire County Council,25-May-17,23387637-15398005,-1198.04,Caretech Community Services,Care Establishment,2 - Operations - Learning Disability,LDP South Cambs - Special Needs,Residential Independent Sector
Cambridgeshire County Council,25-May-17,23387653-15398021,-1198.04,Caretech Community Services,Care Establishment,2 - Operations - Learning Disability,LDP South Cambs - Special Needs,Residential Independent Sector
Cambridgeshire County Council,04-May-17,23157637-15288301,-1198.04,Caretech Community Services,Care Establishment,2 - Operations - Learning Disability,LDP South Cambs Locality - Care,Residential Independent Sector
Cambridgeshire County Council,04-May-17,23157666-15288312,-1198.04,Caretech Community Services,Care Establishment,2 - Operations - Learning Disability,LDP South Cambs - Special Needs,Residential Independent Sector
Cambridgeshire County Council,04-May-17,23157679-15288325,-1198.04,Caretech Community Services,Care Establishment,2 - Operations - Learning Disability,LDP South Cambs Locality - Care,Residential Independent Sector
Cambridgeshire County Council,18-May-17,23339200-15363780,-1198.04,Caretech Community Services,Care Establishment,2 - Operations - Learning Disability,LDP South Cambs - Special Needs,Residential Independent Sector
Cambridgeshire County Council,18-May-17,23339203-15363783,-1198.04,Caretech Community Services,Care Establishment,2 - Operations - Learning Disability,LDP South Cambs Locality - Care,Residential Independent Sector
Cambridgeshire County Council,18-May-17,23339208-15363792,-1198.04,Caretech Community Services,Care Establishment,2 - Operations - Learning Disability,LDP South Cambs - Special Needs,Residential Independent Sector
Cambridgeshire County Council,18-May-17,23339169-15363824,-1198.04,Caretech Community Services,Care Establishment,2 - Operations - Learning Disability,LDP South Cambs Locality - Care,Residential Independent Sector
Cambridgeshire County Council,18-May-17,23339175-15363830,-1198.04,Caretech Community Services,Care Establishment,2 - Operations - Learning Disability,LDP South Cambs - Special Needs,Residential Independent Sector
Cambridgeshire County Council,25-May-17,23387613-15397981,-1198.04,Caretech Community Services,Care Establishment,2 - Operations - Learning Disability,LDP South Cambs - Special Needs,Residential Independent Sector
Cambridgeshire County Council,25-May-17,23387616-15397984,-1198.04,Caretech Community Services,Care Establishment,2 - Operations - Learning Disability,LDP South Cambs - Special Needs,Residential Independent Sector
Cambridgeshire County Council,25-May-17,23387621-15397989,-1198.04,Caretech Community Services,Care Establishment,2 - Operations - Learning Disability,LDP South Cambs Locality - Care,Residential Independent Sector
Cambridgeshire County Council,25-May-17,23387624-15397992,-1198.04,Caretech Community Services,Care Establishment,2 - Operations - Learning Disability,LDP South Cambs - Special Needs,Residential Independent Sector
Cambridgeshire County Council,04-May-17,23157650-15288293,-1198.04,Caretech Community Services,Care Establishment,2 - Operations - Learning Disability,LDP South Cambs - Special Needs,Residential Independent Sector
Cambridgeshire County Council,04-May-17,23157677-15288323,-1198.04,Caretech Community Services,Care Establishment,2 - Operations - Learning Disability,LDP South Cambs - Special Needs,Residential Independent Sector
Cambridgeshire County Council,04-May-17,23157687-15288333,-1198.04,Caretech Community Services,Care Establishment,2 - Operations - Learning Disability,LDP South Cambs Locality - Care,Residential Independent Sector
Cambridgeshire County Council,12-May-17,23263525-15337043,-1198.04,Caretech Community Services,Care Establishment,2 - Operations - Learning Disability,LDP South Cambs - Special Needs,Residential Independent Sector
Cambridgeshire County Council,12-May-17,23263535-15337053,-1198.04,Caretech Community Services,Care Establishment,2 - Operations - Learning Disability,LDP South Cambs Locality - Care,Residential Independent Sector
Cambridgeshire County Council,12-May-17,23263540-15337058,-1198.04,Caretech Community Services,Care Establishment,2 - Operations - Learning Disability,LDP South Cambs - Special Needs,Residential Independent Sector
Cambridgeshire County Council,12-May-17,23260527-15336995,-1198.04,Caretech Community Services,Care Establishment,2 - Operations - Learning Disability,LDP South Cambs - Special Needs,Residential Independent Sector
Cambridgeshire County Council,18-May-17,23335230-15363678,-1198.04,Caretech Community Services,Care Establishment,2 - Operations - Learning Disability,LDP South Cambs Locality - Care,Residential Independent Sector
Cambridgeshire County Council,18-May-17,23339202-15363782,-1198.04,Caretech Community Services,Care Establishment,2 - Operations - Learning Disability,LDP South Cambs Locality - Care,Residential Independent Sector
Cambridgeshire County Council,18-May-17,23339171-15363826,-1198.04,Caretech Community Services,Care Establishment,2 - Operations - Learning Disability,LDP South Cambs Locality - Care,Residential Independent Sector
Cambridgeshire County Council,18-May-17,23339184-15363839,-1198.04,Caretech Community Services,Care Establishment,2 - Operations - Learning Disability,LDP South Cambs - Special Needs,Residential Independent Sector
Cambridgeshire County Council,25-May-17,23387662-15398030,-1198.04,Caretech Community Services,Care Establishment,2 - Operations - Learning Disability,LDP South Cambs - Special Needs,Residential Independent Sector
Cambridgeshire County Council,25-May-17,23074764-15414409,-1191.43,The Marbrook Centre,Care Establishment,2 - Commissioning - Older people Pool,Older People Mental Health City & South,Nursing Independent Sector
Cambridgeshire County Council,25-May-17,23074765-15414410,-1191.43,The Marbrook Centre,Care Establishment,2 - Commissioning - Older people Pool,Older People Mental Health City & South,Nursing Independent Sector
Cambridgeshire County Council,25-May-17,23153703-15394305,-1165.71,Askham Village Community Ltd,Care Establishment,2 - Commissioning - Older people Pool,Older People - City & South,Nursing Independent Sector
Cambridgeshire County Council,25-May-17,23153706-15394308,-1165.71,Askham Village Community Ltd,Care Establishment,2 - Commissioning - Older people Pool,Older People - City & South,Nursing Independent Sector
Cambridgeshire County Council,25-May-17,23153704-15394306,-1165.71,Askham Village Community Ltd,Care Establishment,2 - Commissioning - Older people Pool,Older People - City & South,Nursing Independent Sector
Cambridgeshire County Council,25-May-17,23153708-15394310,-1165.71,Askham Village Community Ltd,Care Establishment,2 - Commissioning - Older people Pool,Older People - City & South,Nursing Independent Sector
Cambridgeshire County Council,12-May-17,23163368-15336238,-1165.19,Affinity Trust,Care Establishment,2 - Operations - Learning Disability,LDP Fens - Special Needs,Day and Domicillary Care Independent Sector
Cambridgeshire County Council,04-May-17,23161176-15289596,-1143.25,Making Space#1,Care Establishment,2 - Commissioning - Older people Pool,Older People Mental Health City & South,Nursing Independent Sector
Cambridgeshire County Council,04-May-17,23161177-15289597,-1143.25,Making Space#1,Care Establishment,2 - Commissioning - Older people Pool,Older People Mental Health City & South,Nursing Independent Sector
Cambridgeshire County Council,04-May-17,23161185-15289605,-1143.25,Making Space#1,Care Establishment,2 - Commissioning - Older people Pool,Older People Mental Health City & South,Nursing Independent Sector
Cambridgeshire County Council,04-May-17,23161183-15289603,-1143.25,Making Space#1,Care Establishment,2 - Commissioning - Older people Pool,Older People Mental Health City & South,Nursing Independent Sector
Cambridgeshire County Council,04-May-17,23161187-15289607,-1143.25,Making Space#1,Care Establishment,2 - Commissioning - Older people Pool,Older People Mental Health City & South,Nursing Independent Sector
Cambridgeshire County Council,04-May-17,23161175-15289595,-1143.25,Making Space#1,Care Establishment,2 - Commissioning - Older people Pool,Older People Mental Health City & South,Nursing Independent Sector
Cambridgeshire County Council,04-May-17,23161186-15289606,-1143.25,Making Space#1,Care Establishment,2 - Commissioning - Older people Pool,Older People Mental Health City & South,Nursing Independent Sector
Cambridgeshire County Council,12-May-17,23259055-15339194,-1137.8,Redacted Personal Data,Individual,2 - Operations - Learning Disability,LDP South Cambs Locality - Care,Direct Payments - Social Services
Cambridgeshire County Council,25-May-17,23390758-15401352,-1128.95,Alderton House,Care Establishment,2 - Operations - Learning Disability,LDP E Cambs Special Needs,Residential Independent Sector
Cambridgeshire County Council,25-May-17,23264593-15390142,-1120.5,Congregation Of The Daughters Of The Cross Of Liege (St Elizabeths Centre),Care Establishment,2 - Operations - Learning Disability,LDP Huntingdonshire Locality - Care,Daycare
Cambridgeshire County Council,04-May-17,23155069-15286832,-1100,Woodlands Care Centre,Care Establishment,2 - Commissioning - Older people Pool,Older People - City & South,Nursing Independent Sector
Cambridgeshire County Council,25-May-17,23139380-15407246,-1100,Glennfield Care Centre (Op),Care Establishment,2 - Operations - Learning Disability,LDP Fenland Locality - Care,Nursing Independent Sector
Cambridgeshire County Council,04-May-17,23155064-15286827,-1100,Woodlands Care Centre,Care Establishment,2 - Commissioning - Older people Pool,Older People - City & South,Nursing Independent Sector
Cambridgeshire County Council,25-May-17,23139381-15407247,-1100,Glennfield Care Centre (Op),Care Establishment,2 - Operations - Learning Disability,LDP Fenland Locality - Care,Nursing Independent Sector
Cambridgeshire County Council,04-May-17,23155076-15286839,-1100,Woodlands Care Centre,Care Establishment,2 - Commissioning - Older people Pool,Older People - City & South,Nursing Independent Sector
Cambridgeshire County Council,04-May-17,23155077-15286840,-1100,Woodlands Care Centre,Care Establishment,2 - Commissioning - Older people Pool,Older People - City & South,Nursing Independent Sector
Cambridgeshire County Council,04-May-17,23155071-15286834,-1100,Woodlands Care Centre,Care Establishment,2 - Commissioning - Older people Pool,Older People - City & South,Nursing Independent Sector
Cambridgeshire County Council,04-May-17,23155082-15286845,-1100,Woodlands Care Centre,Care Establishment,2 - Commissioning - Older people Pool,Older People - City & South,Nursing Independent Sector
Cambridgeshire County Council,25-May-17,23139379-15407245,-1100,Glennfield Care Centre (Op),Care Establishment,2 - Operations - Learning Disability,LDP Fenland Locality - Care,Nursing Independent Sector
Cambridgeshire County Council,25-May-17,23139378-15407244,-1100,Glennfield Care Centre (Op),Care Establishment,2 - Operations - Learning Disability,LDP Fenland Locality - Care,Nursing Independent Sector
Cambridgeshire County Council,04-May-17,23155079-15286842,-1100,Woodlands Care Centre,Care Establishment,2 - Commissioning - Older people Pool,Older People - City & South,Nursing Independent Sector
Cambridgeshire County Council,25-May-17,23339525-15407305,-1098.8,Glennfield Care Centre (Op),Care Establishment,2 - Operations - Learning Disability,LDP Fenland Locality - Care,Nursing Independent Sector
Cambridgeshire County Council,25-May-17,23339522-15407302,-1098.8,Glennfield Care Centre (Op),Care Establishment,2 - Operations - Learning Disability,LDP Fenland Locality - Care,Nursing Independent Sector
Cambridgeshire County Council,25-May-17,23339516-15407298,-1098.8,Glennfield Care Centre (Op),Care Establishment,2 - Operations - Learning Disability,LDP Fenland Locality - Care,Nursing Independent Sector
Cambridgeshire County Council,25-May-17,23339517-15407299,-1098.8,Glennfield Care Centre (Op),Care Establishment,2 - Operations - Learning Disability,LDP Fenland Locality - Care,Nursing Independent Sector
Cambridgeshire County Council,25-May-17,23155688-15388706,-1094.25,The Cambridge Nursing Centre,Care Establishment,2 - Commissioning - Older people Pool,Older People Mental Health City & South,Nursing Independent Sector
Cambridgeshire County Council,25-May-17,23155695-15388713,-1094.25,The Cambridge Nursing Centre,Care Establishment,2 - Commissioning - Older people Pool,Older People Mental Health City & South,Nursing Independent Sector
Cambridgeshire County Council,25-May-17,23155701-15388719,-1094.25,The Cambridge Nursing Centre,Care Establishment,2 - Commissioning - Older people Pool,Older People Mental Health City & South,Nursing Independent Sector
Cambridgeshire County Council,25-May-17,23155689-15388707,-1094.25,The Cambridge Nursing Centre,Care Establishment,2 - Commissioning - Older people Pool,Older People Mental Health City & South,Nursing Independent Sector
Cambridgeshire County Council,25-May-17,23155691-15388709,-1094.25,The Cambridge Nursing Centre,Care Establishment,2 - Commissioning - Older people Pool,Older People Mental Health City & South,Nursing Independent Sector
Cambridgeshire County Council,25-May-17,23155699-15388717,-1094.25,The Cambridge Nursing Centre,Care Establishment,2 - Commissioning - Older people Pool,Older People Mental Health City & South,Nursing Independent Sector
Cambridgeshire County Council,25-May-17,23155692-15388710,-1094.25,The Cambridge Nursing Centre,Care Establishment,2 - Commissioning - Older people Pool,Older People Mental Health City & South,Nursing Independent Sector
Cambridgeshire County Council,31-May-17,22846593-15432078,-1093.88,Stonham,Care Establishment,S&C,Placements - Social Care,Childrens Lodgings
Cambridgeshire County Council,12-May-17,23157568-15339286,-1091.65,Guyatt House Care Ltd,Care Establishment,2 - Operations - Learning Disability,LDP E Cambs Special Needs,Day and Domicillary Care Independent Sector
Cambridgeshire County Council,12-May-17,23261488-15339289,-1091.65,Guyatt House Care Ltd,Care Establishment,2 - Operations - Learning Disability,LDP E Cambs Special Needs,Day and Domicillary Care Independent Sector
Cambridgeshire County Council,25-May-17,23335103-15414227,-1091.65,Guyatt House Care Ltd,Care Establishment,2 - Operations - Learning Disability,LDP E Cambs Special Needs,Day and Domicillary Care Independent Sector
Cambridgeshire County Council,25-May-17,23381689-15414245,-1091.65,Guyatt House Care Ltd,Care Establishment,2 - Operations - Learning Disability,LDP E Cambs Locality - Care,Day and Domicillary Care Independent Sector
Cambridgeshire County Council,12-May-17,23264526-15336793,-1086.52,The Manor Cheshire Home,Care Establishment,3 - Operations - Countywide Services,Countywide PD Service - Care,Residential Independent Sector
Cambridgeshire County Council,12-May-17,23264531-15336798,-1086.52,The Manor Cheshire Home,Care Establishment,3 - Operations - Countywide Services,Countywide PD Service - Care,Residential Independent Sector
Cambridgeshire County Council,12-May-17,23264522-15336789,-1086.52,The Manor Cheshire Home,Care Establishment,3 - Operations - Countywide Services,Countywide PD Service - Care,Residential Independent Sector
Cambridgeshire County Council,12-May-17,23264528-15336795,-1086.52,The Manor Cheshire Home,Care Establishment,3 - Operations - Countywide Services,Countywide PD Service - Care,Residential Independent Sector
Cambridgeshire County Council,12-May-17,23264534-15336801,-1086.52,The Manor Cheshire Home,Care Establishment,3 - Operations - Countywide Services,Countywide PD Service - Care,Residential Independent Sector
Cambridgeshire County Council,12-May-17,23264536-15336803,-1086.52,The Manor Cheshire Home,Care Establishment,3 - Operations - Countywide Services,Countywide PD Service - Care,Residential Independent Sector
Cambridgeshire County Council,12-May-17,23264538-15336805,-1086.52,The Manor Cheshire Home,Care Establishment,3 - Operations - Countywide Services,Countywide PD Service - Care,Residential Independent Sector
Cambridgeshire County Council,04-May-17,23160412-15285677,-1075.25,Barchester Healthcare Homes Ltd,Care Establishment,2 - Commissioning - Older people Pool,Older People - City & South,Nursing Independent Sector
Cambridgeshire County Council,04-May-17,23160413-15285678,-1075.25,Barchester Healthcare Homes Ltd,Care Establishment,2 - Commissioning - Older people Pool,Older People - City & South,Nursing Independent Sector
Cambridgeshire County Council,04-May-17,23160415-15285680,-1075.25,Barchester Healthcare Homes Ltd,Care Establishment,2 - Commissioning - Older people Pool,Older People - City & South,Nursing Independent Sector
Cambridgeshire County Council,04-May-17,23160408-15285673,-1075.25,Barchester Healthcare Homes Ltd,Care Establishment,2 - Commissioning - Older people Pool,Older People - City & South,Nursing Independent Sector
Cambridgeshire County Council,04-May-17,23160405-15285670,-1075.25,Barchester Healthcare Homes Ltd,Care Establishment,2 - Commissioning - Older people Pool,Older People - City & South,Nursing Independent Sector
Cambridgeshire County Council,04-May-17,23160418-15285683,-1075.25,Barchester Healthcare Homes Ltd,Care Establishment,2 - Commissioning - Older people Pool,Older People - City & South,Nursing Independent Sector
Cambridgeshire County Council,04-May-17,23160420-15285685,-1075.25,Barchester Healthcare Homes Ltd,Care Establishment,2 - Commissioning - Older people Pool,Older People - City & South,Nursing Independent Sector
Cambridgeshire County Council,25-May-17,23263387-15412308,-1072.52,Dimensions (Uk) Ltd,Care Establishment,2 - Operations - Learning Disability,LDP City Locality - Care,Supported Living
Cambridgeshire County Council,25-May-17,23373437-15411607,-1065,Redacted Personal Data,Individual,2 - Operations - Learning Disability,LDP E Cambs Locality - Care,Direct Payments - Social Services
Cambridgeshire County Council,25-May-17,23373439-15411609,-1065,Redacted Personal Data,Individual,2 - Operations - Learning Disability,LDP E Cambs Locality - Care,Direct Payments - Social Services
Cambridgeshire County Council,25-May-17,23373423-15411597,-1065,Redacted Personal Data,Individual,2 - Operations - Learning Disability,LDP E Cambs Locality - Care,Direct Payments - Social Services
Cambridgeshire County Council,25-May-17,23373440-15411610,-1065,Redacted Personal Data,Individual,2 - Operations - Learning Disability,LDP E Cambs Locality - Care,Direct Payments - Social Services
Cambridgeshire County Council,25-May-17,23373434-15411604,-1065,Redacted Personal Data,Individual,2 - Operations - Learning Disability,LDP E Cambs Locality - Care,Direct Payments - Social Services
Cambridgeshire County Council,25-May-17,23373446-15411614,-1065,Redacted Personal Data,Individual,2 - Operations - Learning Disability,LDP E Cambs Locality - Care,Direct Payments - Social Services
Cambridgeshire County Council,25-May-17,23373430-15411601,-1065,Redacted Personal Data,Individual,2 - Operations - Learning Disability,LDP E Cambs Locality - Care,Direct Payments - Social Services
Cambridgeshire County Council,25-May-17,23373438-15411608,-1065,Redacted Personal Data,Individual,2 - Operations - Learning Disability,LDP E Cambs Locality - Care,Direct Payments - Social Services
Cambridgeshire County Council,25-May-17,23373450-15411618,-1065,Redacted Personal Data,Individual,2 - Operations - Learning Disability,LDP E Cambs Locality - Care,Direct Payments - Social Services
Cambridgeshire County Council,25-May-17,23157532-15402873,-1052,Cambridge Manor Care Home (Tlc),Care Establishment,2 - Commissioning - Older people Pool,Older People - City & South,Nursing Independent Sector
Cambridgeshire County Council,25-May-17,23157537-15402878,-1052,Cambridge Manor Care Home (Tlc),Care Establishment,2 - Commissioning - Older people Pool,Older People - City & South,Nursing Independent Sector
Cambridgeshire County Council,25-May-17,23157534-15402875,-1052,Cambridge Manor Care Home (Tlc),Care Establishment,2 - Commissioning - Older people Pool,Older People - City & South,Nursing Independent Sector
Cambridgeshire County Council,25-May-17,23161753-15402909,-1052,Cambridge Manor Care Home (Tlc),Care Establishment,2 - Commissioning - Older people Pool,Older People - City & South,Nursing Independent Sector
Cambridgeshire County Council,04-May-17,23159775-15287006,-1050,Woodlands Care Centre,Care Establishment,2 - Commissioning - Older people Pool,Older People Mental Health City & South,Nursing Independent Sector
Cambridgeshire County Council,25-May-17,23155283-15400627,-1050,Soham Lodge,Care Establishment,2 - Commissioning - Older people Pool,East Cambs - O P Team,Nursing Independent Sector
Cambridgeshire County Council,25-May-17,23155285-15400629,-1050,Soham Lodge,Care Establishment,2 - Commissioning - Older people Pool,East Cambs - O P Team,Nursing Independent Sector
Cambridgeshire County Council,25-May-17,23155286-15400630,-1050,Soham Lodge,Care Establishment,2 - Commissioning - Older people Pool,East Cambs - O P Team,Nursing Independent Sector
Cambridgeshire County Council,04-May-17,23159763-15286994,-1050,Woodlands Care Centre,Care Establishment,2 - Commissioning - Older people Pool,Older People Mental Health City & South,Nursing Independent Sector
Cambridgeshire County Council,04-May-17,23159776-15287007,-1050,Woodlands Care Centre,Care Establishment,2 - Commissioning - Older people Pool,Older People Mental Health City & South,Nursing Independent Sector
Cambridgeshire County Council,04-May-17,23159777-15287008,-1050,Woodlands Care Centre,Care Establishment,2 - Commissioning - Older people Pool,Older People Mental Health City & South,Nursing Independent Sector
Cambridgeshire County Council,04-May-17,23159761-15286992,-1050,Woodlands Care Centre,Care Establishment,2 - Commissioning - Older people Pool,Older People Mental Health City & South,Nursing Independent Sector
Cambridgeshire County Council,04-May-17,23159770-15287001,-1050,Woodlands Care Centre,Care Establishment,2 - Commissioning - Older people Pool,Older People Mental Health City & South,Nursing Independent Sector
Cambridgeshire County Council,04-May-17,23159767-15286998,-1050,Woodlands Care Centre,Care Establishment,2 - Commissioning - Older people Pool,Older People Mental Health City & South,Nursing Independent Sector
Cambridgeshire County Council,25-May-17,23155282-15400626,-1050,Soham Lodge,Care Establishment,2 - Commissioning - Older people Pool,East Cambs - O P Team,Nursing Independent Sector
Cambridgeshire County Council,04-May-17,23159766-15286997,-1050,Woodlands Care Centre,Care Establishment,2 - Commissioning - Older people Pool,Older People Mental Health City & South,Nursing Independent Sector
Cambridgeshire County Council,04-May-17,23159768-15286999,-1050,Woodlands Care Centre,Care Establishment,2 - Commissioning - Older people Pool,Older People Mental Health City & South,Nursing Independent Sector
Cambridgeshire County Council,25-May-17,23163582-15402925,-1049.25,Cambridge Manor Care Home (Tlc),Care Establishment,2 - Commissioning - Older people Pool,Older People Mental Health E Cambs,Nursing Independent Sector
Cambridgeshire County Council,25-May-17,23163566-15402923,-1049.25,Cambridge Manor Care Home (Tlc),Care Establishment,2 - Commissioning - Older people Pool,Older People Mental Health E Cambs,Nursing Independent Sector
Cambridgeshire County Council,25-May-17,23163847-15402938,-1049.25,Cambridge Manor Care Home (Tlc),Care Establishment,2 - Commissioning - Older people Pool,Older People Mental Health E Cambs,Nursing Independent Sector
Cambridgeshire County Council,25-May-17,23163816-15402930,-1049.25,Cambridge Manor Care Home (Tlc),Care Establishment,2 - Commissioning - Older people Pool,Older People Mental Health E Cambs,Nursing Independent Sector
Cambridgeshire County Council,25-May-17,23385512-15410436,-1042,Winston House(2care),Care Establishment,2 - Commissioning - Older people Pool,Older People Mental Health Fenland,Residential Independent Sector
Cambridgeshire County Council,25-May-17,23385515-15410439,-1042,Winston House(2care),Care Establishment,2 - Commissioning - Older people Pool,Older People Mental Health Fenland,Residential Independent Sector
Cambridgeshire County Council,25-May-17,23385521-15410445,-1042,Winston House(2care),Care Establishment,2 - Commissioning - Older people Pool,Older People Mental Health Fenland,Residential Independent Sector
Cambridgeshire County Council,25-May-17,23385522-15410446,-1042,Winston House(2care),Care Establishment,2 - Commissioning - Older people Pool,Older People Mental Health Fenland,Residential Independent Sector
Cambridgeshire County Council,25-May-17,23385524-15410448,-1042,Winston House(2care),Care Establishment,2 - Commissioning - Older people Pool,Older People Mental Health Fenland,Residential Independent Sector
Cambridgeshire County Council,25-May-17,23385505-15410429,-1042,Winston House(2care),Care Establishment,2 - Commissioning - Older people Pool,Older People Mental Health Fenland,Residential Independent Sector
Cambridgeshire County Council,25-May-17,23385526-15410450,-1042,Winston House(2care),Care Establishment,2 - Commissioning - Older people Pool,Older People Mental Health Fenland,Residential Independent Sector
Cambridgeshire County Council,25-May-17,23385529-15410453,-1042,Winston House(2care),Care Establishment,2 - Commissioning - Older people Pool,Older People Mental Health Fenland,Residential Independent Sector
Cambridgeshire County Council,25-May-17,23385531-15410455,-1042,Winston House(2care),Care Establishment,2 - Commissioning - Older people Pool,Older People Mental Health Fenland,Residential Independent Sector
Cambridgeshire County Council,25-May-17,23385507-15410431,-1042,Winston House(2care),Care Establishment,2 - Commissioning - Older people Pool,Older People Mental Health Fenland,Residential Independent Sector
Cambridgeshire County Council,25-May-17,23385514-15410438,-1042,Winston House(2care),Care Establishment,2 - Commissioning - Older people Pool,Older People Mental Health Fenland,Residential Independent Sector
Cambridgeshire County Council,25-May-17,23385516-15410440,-1042,Winston House(2care),Care Establishment,2 - Commissioning - Older people Pool,Older People Mental Health Fenland,Residential Independent Sector
Cambridgeshire County Council,25-May-17,23385518-15410442,-1042,Winston House(2care),Care Establishment,2 - Commissioning - Older people Pool,Older People Mental Health Fenland,Residential Independent Sector
Cambridgeshire County Council,25-May-17,23385527-15410451,-1042,Winston House(2care),Care Establishment,2 - Commissioning - Older people Pool,Older People Mental Health Fenland,Residential Independent Sector
Cambridgeshire County Council,25-May-17,23385508-15410432,-1042,Winston House(2care),Care Establishment,2 - Commissioning - Older people Pool,Older People Mental Health Fenland,Residential Independent Sector
Cambridgeshire County Council,25-May-17,23385517-15410441,-1042,Winston House(2care),Care Establishment,2 - Commissioning - Older people Pool,Older People Mental Health Fenland,Residential Independent Sector
Cambridgeshire County Council,25-May-17,23385523-15410447,-1042,Winston House(2care),Care Establishment,2 - Commissioning - Older people Pool,Older People Mental Health Fenland,Residential Independent Sector
Cambridgeshire County Council,25-May-17,23385504-15410428,-1042,Winston House(2care),Care Establishment,2 - Commissioning - Older people Pool,Older People Mental Health Fenland,Residential Independent Sector
Cambridgeshire County Council,25-May-17,23385506-15410430,-1042,Winston House(2care),Care Establishment,2 - Commissioning - Older people Pool,Older People Mental Health Fenland,Residential Independent Sector
Cambridgeshire County Council,25-May-17,23385519-15410443,-1042,Winston House(2care),Care Establishment,2 - Commissioning - Older people Pool,Older People Mental Health Fenland,Residential Independent Sector
Cambridgeshire County Council,25-May-17,23385525-15410449,-1042,Winston House(2care),Care Establishment,2 - Commissioning - Older people Pool,Older People Mental Health Fenland,Residential Independent Sector
Cambridgeshire County Council,25-May-17,23385528-15410452,-1042,Winston House(2care),Care Establishment,2 - Commissioning - Older people Pool,Older People Mental Health Fenland,Residential Independent Sector
Cambridgeshire County Council,25-May-17,23385509-15410433,-1042,Winston House(2care),Care Establishment,2 - Commissioning - Older people Pool,Older People Mental Health Fenland,Residential Independent Sector
Cambridgeshire County Council,25-May-17,23385520-15410444,-1042,Winston House(2care),Care Establishment,2 - Commissioning - Older people Pool,Older People Mental Health Fenland,Residential Independent Sector
Cambridgeshire County Council,25-May-17,23385510-15410434,-1042,Winston House(2care),Care Establishment,2 - Commissioning - Older people Pool,Older People Mental Health Fenland,Residential Independent Sector
Cambridgeshire County Council,25-May-17,23385513-15410437,-1042,Winston House(2care),Care Establishment,2 - Commissioning - Older people Pool,Older People Mental Health Fenland,Residential Independent Sector
Cambridgeshire County Council,25-May-17,23385533-15410457,-1042,Winston House(2care),Care Establishment,2 - Commissioning - Older people Pool,Older People Mental Health Fenland,Residential Independent Sector
Cambridgeshire County Council,25-May-17,23161800-15400082,-1039.25,Oaklands Care Home,Care Establishment,2 - Commissioning - Older people Pool,Older People Mental Health City & South,Nursing Independent Sector
Cambridgeshire County Council,25-May-17,23151771-15399964,-1039.25,Oaklands Care Home,Care Establishment,2 - Commissioning - Older people Pool,Older People Mental Health City & South,Nursing Independent Sector
Cambridgeshire County Council,25-May-17,23151764-15399957,-1039.25,Oaklands Care Home,Care Establishment,2 - Commissioning - Older people Pool,Older People Mental Health City & South,Nursing Independent Sector
Cambridgeshire County Council,25-May-17,23161796-15400078,-1039.25,Oaklands Care Home,Care Establishment,2 - Commissioning - Older people Pool,Older People Mental Health City & South,Nursing Independent Sector
Cambridgeshire County Council,25-May-17,23151766-15399959,-1039.25,Oaklands Care Home,Care Establishment,2 - Commissioning - Older people Pool,Older People Mental Health City & South,Nursing Independent Sector
Cambridgeshire County Council,25-May-17,23151769-15399962,-1039.25,Oaklands Care Home,Care Establishment,2 - Commissioning - Older people Pool,Older People Mental Health City & South,Nursing Independent Sector
Cambridgeshire County Council,25-May-17,23161794-15400076,-1039.25,Oaklands Care Home,Care Establishment,2 - Commissioning - Older people Pool,Older People Mental Health City & South,Nursing Independent Sector
Cambridgeshire County Council,25-May-17,23161799-15400081,-1039.25,Oaklands Care Home,Care Establishment,2 - Commissioning - Older people Pool,Older People Mental Health City & South,Nursing Independent Sector
Cambridgeshire County Council,12-May-17,23161682-15336698,-1036.99,Etheldred House,Care Establishment,2 - Commissioning - Older people Pool,Older People Mental Health E Cambs,Nursing Independent Sector
Cambridgeshire County Council,12-May-17,23161686-15336702,-1036.99,Etheldred House,Care Establishment,2 - Commissioning - Older people Pool,Older People Mental Health E Cambs,Nursing Independent Sector
Cambridgeshire County Council,12-May-17,23161684-15336700,-1036.99,Etheldred House,Care Establishment,2 - Commissioning - Older people Pool,Older People Mental Health E Cambs,Nursing Independent Sector
Cambridgeshire County Council,12-May-17,23161678-15336694,-1036.99,Etheldred House,Care Establishment,2 - Commissioning - Older people Pool,Older People Mental Health E Cambs,Nursing Independent Sector
Cambridgeshire County Council,12-May-17,23260532-15337000,-1026.89,Caretech Community Services,Care Establishment,2 - Operations - Learning Disability,LDP South Cambs Locality - Care,Residential Independent Sector
Cambridgeshire County Council,18-May-17,23339201-15363781,-1026.89,Caretech Community Services,Care Establishment,2 - Operations - Learning Disability,LDP South Cambs - Special Needs,Residential Independent Sector
Cambridgeshire County Council,25-May-17,23387665-15398033,-1026.89,Caretech Community Services,Care Establishment,2 - Operations - Learning Disability,LDP South Cambs - Special Needs,Residential Independent Sector
Cambridgeshire County Council,04-May-17,23157654-15288297,-1026.89,Caretech Community Services,Care Establishment,2 - Operations - Learning Disability,LDP South Cambs - Special Needs,Residential Independent Sector
Cambridgeshire County Council,12-May-17,23158694-15336679,-1022.81,Etheldred House,Care Establishment,2 - Commissioning - Older people Pool,Older People Mental Health City & South,Nursing Independent Sector
Cambridgeshire County Council,12-May-17,23158681-15336673,-1022.81,Etheldred House,Care Establishment,2 - Commissioning - Older people Pool,Older People Mental Health City & South,Nursing Independent Sector
Cambridgeshire County Council,12-May-17,23158691-15336677,-1022.81,Etheldred House,Care Establishment,2 - Commissioning - Older people Pool,Older People Mental Health City & South,Nursing Independent Sector
Cambridgeshire County Council,12-May-17,23158687-15336675,-1022.81,Etheldred House,Care Establishment,2 - Commissioning - Older people Pool,Older People Mental Health City & South,Nursing Independent Sector
Cambridgeshire County Council,31-May-17,23362685-15432079,-1018.44,Stonham,Care Establishment,S&C,Placements - Social Care,Childrens Lodgings
Cambridgeshire County Council,04-May-17,23163390-15287089,-994.25,Woodlands Care Centre,Care Establishment,2 - Commissioning - Older people Pool,Older People Mental Health City & South,Nursing Independent Sector
Cambridgeshire County Council,12-May-17,23157138-15336614,-994.25,Etheldred House,Care Establishment,2 - Commissioning - Older people Pool,Older People Mental Health City & South,Nursing Independent Sector
Cambridgeshire County Council,25-May-17,23158518-15400046,-994.25,Oaklands Care Home,Care Establishment,3 - Operations - Countywide Services,Countywide PD Service - Care,Nursing Independent Sector
Cambridgeshire County Council,04-May-17,23153553-15286723,-994.25,Woodlands Care Centre,Care Establishment,2 - Commissioning - Older people Pool,Older People Mental Health City & South,Nursing Independent Sector
Cambridgeshire County Council,04-May-17,23153562-15286732,-994.25,Woodlands Care Centre,Care Establishment,2 - Commissioning - Older people Pool,Older People Mental Health City & South,Nursing Independent Sector
Cambridgeshire County Council,04-May-17,23153565-15286735,-994.25,Woodlands Care Centre,Care Establishment,2 - Commissioning - Older people Pool,Older People Mental Health City & South,Nursing Independent Sector
Cambridgeshire County Council,04-May-17,23163386-15287085,-994.25,Woodlands Care Centre,Care Establishment,2 - Commissioning - Older people Pool,Older People Mental Health City & South,Nursing Independent Sector
Cambridgeshire County Council,04-May-17,23163391-15287090,-994.25,Woodlands Care Centre,Care Establishment,2 - Commissioning - Older people Pool,Older People Mental Health City & South,Nursing Independent Sector
Cambridgeshire County Council,04-May-17,23153555-15286725,-994.25,Woodlands Care Centre,Care Establishment,2 - Commissioning - Older people Pool,Older People Mental Health City & South,Nursing Independent Sector
Cambridgeshire County Council,04-May-17,23153561-15286731,-994.25,Woodlands Care Centre,Care Establishment,2 - Commissioning - Older people Pool,Older People Mental Health City & South,Nursing Independent Sector
Cambridgeshire County Council,04-May-17,23153563-15286733,-994.25,Woodlands Care Centre,Care Establishment,2 - Commissioning - Older people Pool,Older People Mental Health City & South,Nursing Independent Sector
Cambridgeshire County Council,25-May-17,23160272-15407290,-994.25,Glennfield Care Centre (Op),Care Establishment,3 - Operations - Countywide Services,Countywide PD Service - Care,Nursing Independent Sector
Cambridgeshire County Council,25-May-17,23160274-15407292,-994.25,Glennfield Care Centre (Op),Care Establishment,3 - Operations - Countywide Services,Countywide PD Service - Care,Nursing Independent Sector
Cambridgeshire County Council,04-May-17,23153557-15286727,-994.25,Woodlands Care Centre,Care Establishment,2 - Commissioning - Older people Pool,Older People Mental Health City & South,Nursing Independent Sector
Cambridgeshire County Council,04-May-17,23163395-15287094,-994.25,Woodlands Care Centre,Care Establishment,2 - Commissioning - Older people Pool,Older People Mental Health City & South,Nursing Independent Sector
Cambridgeshire County Council,04-May-17,23163402-15287101,-994.25,Woodlands Care Centre,Care Establishment,2 - Commissioning - Older people Pool,Older People Mental Health City & South,Nursing Independent Sector
Cambridgeshire County Council,25-May-17,23158527-15400055,-994.25,Oaklands Care Home,Care Establishment,3 - Operations - Countywide Services,Countywide PD Service - Care,Nursing Independent Sector
Cambridgeshire County Council,25-May-17,23160270-15407288,-994.25,Glennfield Care Centre (Op),Care Establishment,3 - Operations - Countywide Services,Countywide PD Service - Care,Nursing Independent Sector
Cambridgeshire County Council,04-May-17,23163399-15287098,-994.25,Woodlands Care Centre,Care Establishment,2 - Commissioning - Older people Pool,Older People Mental Health City & South,Nursing Independent Sector
Cambridgeshire County Council,12-May-17,23157133-15336609,-994.25,Etheldred House,Care Establishment,2 - Commissioning - Older people Pool,Older People Mental Health City & South,Nursing Independent Sector
Cambridgeshire County Council,12-May-17,23157134-15336610,-994.25,Etheldred House,Care Establishment,2 - Commissioning - Older people Pool,Older People Mental Health City & South,Nursing Independent Sector
Cambridgeshire County Council,25-May-17,23160273-15407291,-994.25,Glennfield Care Centre (Op),Care Establishment,3 - Operations - Countywide Services,Countywide PD Service - Care,Nursing Independent Sector
Cambridgeshire County Council,04-May-17,23163392-15287091,-994.25,Woodlands Care Centre,Care Establishment,2 - Commissioning - Older people Pool,Older People Mental Health City & South,Nursing Independent Sector
Cambridgeshire County Council,12-May-17,23157137-15336613,-994.25,Etheldred House,Care Establishment,2 - Commissioning - Older people Pool,Older People Mental Health City & South,Nursing Independent Sector
Cambridgeshire County Council,25-May-17,23158519-15400047,-994.25,Oaklands Care Home,Care Establishment,3 - Operations - Countywide Services,Countywide PD Service - Care,Nursing Independent Sector
Cambridgeshire County Council,25-May-17,23158522-15400050,-994.25,Oaklands Care Home,Care Establishment,3 - Operations - Countywide Services,Countywide PD Service - Care,Nursing Independent Sector
Cambridgeshire County Council,04-May-17,23156267-15285154,-990,Bramley Court,Care Establishment,2 - Commissioning - Older people Pool,Older People Mental Health City & South,Nursing Independent Sector
Cambridgeshire County Council,04-May-17,23156259-15285146,-990,Bramley Court,Care Establishment,2 - Commissioning - Older people Pool,Older People Mental Health City & South,Nursing Independent Sector
Cambridgeshire County Council,04-May-17,23156261-15285148,-990,Bramley Court,Care Establishment,2 - Commissioning - Older people Pool,Older People Mental Health City & South,Nursing Independent Sector
Cambridgeshire County Council,04-May-17,23156269-15285156,-990,Bramley Court,Care Establishment,2 - Commissioning - Older people Pool,Older People Mental Health City & South,Nursing Independent Sector
Cambridgeshire County Council,04-May-17,23156268-15285155,-990,Bramley Court,Care Establishment,2 - Commissioning - Older people Pool,Older People Mental Health City & South,Nursing Independent Sector
Cambridgeshire County Council,04-May-17,23156252-15285139,-990,Bramley Court,Care Establishment,2 - Commissioning - Older people Pool,Older People Mental Health City & South,Nursing Independent Sector
Cambridgeshire County Council,04-May-17,23156270-15285157,-990,Bramley Court,Care Establishment,2 - Commissioning - Older people Pool,Older People Mental Health City & South,Nursing Independent Sector
Cambridgeshire County Council,04-May-17,23156260-15285147,-990,Bramley Court,Care Establishment,2 - Commissioning - Older people Pool,Older People Mental Health City & South,Nursing Independent Sector
Cambridgeshire County Council,19-May-17,23187708-15369265,-988.75,Ccs Media Limited,Trade Supplier,2 - Operations - Learning Disability,LDP - Admin Team City & S Cambs,Office equipment
Cambridgeshire County Council,30-May-17,22570367-15427036,-980.64,Fostering Solutions Ltd,Care Establishment,S&C,Placements - Social Care,Agency Placements - Out County
Cambridgeshire County Council,25-May-17,23154758-15403659,-975.31,Cottenham Court Nursing Home,Care Establishment,3 - Operations - Countywide Services,Countywide PD Service - Care,Nursing Independent Sector
Cambridgeshire County Council,25-May-17,23154759-15403660,-975.31,Cottenham Court Nursing Home,Care Establishment,3 - Operations - Countywide Services,Countywide PD Service - Care,Nursing Independent Sector
Cambridgeshire County Council,25-May-17,23154751-15403652,-975.31,Cottenham Court Nursing Home,Care Establishment,3 - Operations - Countywide Services,Countywide PD Service - Care,Nursing Independent Sector
Cambridgeshire County Council,25-May-17,23154753-15403654,-975.31,Cottenham Court Nursing Home,Care Establishment,3 - Operations - Countywide Services,Countywide PD Service - Care,Nursing Independent Sector
Cambridgeshire County Council,25-May-17,23159734-15401590,-971.87,Care Uk Community Partnerships Ltd,Care Establishment,2 - Commissioning - Older people Pool,Older People Mental Health City & South,Nursing Independent Sector
Cambridgeshire County Council,25-May-17,23158749-15401564,-971.87,Care Uk Community Partnerships Ltd,Care Establishment,2 - Commissioning - Older people Pool,Older People Mental Health City & South,Nursing Independent Sector
Cambridgeshire County Council,25-May-17,23159721-15401586,-971.87,Care Uk Community Partnerships Ltd,Care Establishment,2 - Commissioning - Older people Pool,Older People Mental Health City & South,Nursing Independent Sector
Cambridgeshire County Council,25-May-17,23158746-15401563,-971.87,Care Uk Community Partnerships Ltd,Care Establishment,2 - Commissioning - Older people Pool,Older People Mental Health City & South,Nursing Independent Sector
Cambridgeshire County Council,04-May-17,23160952-15289532,-970.36,Making Space#1,Care Establishment,3 - Operations - Countywide Services,Countywide PD Service - Care,Nursing Independent Sector
Cambridgeshire County Council,04-May-17,23160977-15289557,-970.36,Making Space#1,Care Establishment,3 - Operations - Countywide Services,Countywide PD Service - Care,Nursing Independent Sector
Cambridgeshire County Council,04-May-17,23160980-15289560,-970.36,Making Space#1,Care Establishment,3 - Operations - Countywide Services,Countywide PD Service - Care,Nursing Independent Sector
Cambridgeshire County Council,04-May-17,23160998-15289578,-970.36,Making Space#1,Care Establishment,3 - Operations - Countywide Services,Countywide PD Service - Care,Nursing Independent Sector
Cambridgeshire County Council,04-May-17,23160960-15289540,-970.36,Making Space#1,Care Establishment,3 - Operations - Countywide Services,Countywide PD Service - Care,Nursing Independent Sector
Cambridgeshire County Council,04-May-17,23160990-15289570,-970.36,Making Space#1,Care Establishment,3 - Operations - Countywide Services,Countywide PD Service - Care,Nursing Independent Sector
Cambridgeshire County Council,04-May-17,23160945-15289525,-970.36,Making Space#1,Care Establishment,3 - Operations - Countywide Services,Countywide PD Service - Care,Nursing Independent Sector
Cambridgeshire County Council,25-May-17,23130579-15408634,-959.12,Fevaca,Care Establishment,S&C,Placements - Social Care,Agency Placements - In Cambs
Cambridgeshire County Council,04-May-17,23157041-15291214,-951.77,Eltisley Manor (Psycare Ltd),Care Establishment,2 - Commissioning - Older people Pool,Older People Mental Health Hunts,Nursing Independent Sector
Cambridgeshire County Council,04-May-17,23157052-15291225,-951.77,Eltisley Manor (Psycare Ltd),Care Establishment,2 - Commissioning - Older people Pool,Older People Mental Health Hunts,Nursing Independent Sector
Cambridgeshire County Council,04-May-17,23157045-15291218,-951.77,Eltisley Manor (Psycare Ltd),Care Establishment,2 - Commissioning - Older people Pool,Older People Mental Health Hunts,Nursing Independent Sector
Cambridgeshire County Council,04-May-17,23157048-15291221,-951.77,Eltisley Manor (Psycare Ltd),Care Establishment,2 - Commissioning - Older people Pool,Older People Mental Health Hunts,Nursing Independent Sector
Cambridgeshire County Council,04-May-17,23157053-15291226,-951.77,Eltisley Manor (Psycare Ltd),Care Establishment,2 - Commissioning - Older people Pool,Older People Mental Health Hunts,Nursing Independent Sector
Cambridgeshire County Council,04-May-17,23157050-15291223,-951.77,Eltisley Manor (Psycare Ltd),Care Establishment,2 - Commissioning - Older people Pool,Older People Mental Health Hunts,Nursing Independent Sector
Cambridgeshire County Council,04-May-17,23157038-15291211,-951.77,Eltisley Manor (Psycare Ltd),Care Establishment,2 - Commissioning - Older people Pool,Older People Mental Health Hunts,Nursing Independent Sector
Cambridgeshire County Council,04-May-17,23160579-15289729,-951.53,Rose Lodge,Care Establishment,2 - Commissioning - Older people Pool,Older People Mental Health Fenland,Nursing Independent Sector
Cambridgeshire County Council,04-May-17,23160567-15289725,-951.53,Rose Lodge,Care Establishment,2 - Commissioning - Older people Pool,Older People Mental Health Fenland,Nursing Independent Sector
Cambridgeshire County Council,04-May-17,23163443-15289766,-951.53,Rose Lodge,Care Establishment,2 - Commissioning - Older people Pool,Older People Mental Health Fenland,Nursing Independent Sector
Cambridgeshire County Council,04-May-17,23160557-15289720,-951.53,Rose Lodge,Care Establishment,2 - Commissioning - Older people Pool,Older People Mental Health Fenland,Nursing Independent Sector
Cambridgeshire County Council,04-May-17,23160559-15289721,-951.53,Rose Lodge,Care Establishment,2 - Commissioning - Older people Pool,Older People Mental Health Fenland,Nursing Independent Sector
Cambridgeshire County Council,04-May-17,23160570-15289726,-951.53,Rose Lodge,Care Establishment,2 - Commissioning - Older people Pool,Older People Mental Health Fenland,Nursing Independent Sector
Cambridgeshire County Council,04-May-17,23160583-15289732,-951.53,Rose Lodge,Care Establishment,2 - Commissioning - Older people Pool,Older People Mental Health Fenland,Nursing Independent Sector
Cambridgeshire County Council,18-May-17,23155841-15365484,-950,Askham Place Pd,Care Establishment,3 - Operations - Countywide Services,Countywide PD Service - Care,Nursing Independent Sector
Cambridgeshire County Council,25-May-17,23158572-15389466,-950,The Gables Specialist Nursing Home,Care Establishment,2 - Commissioning - Older people Pool,Older People Mental Health Fenland,Nursing Independent Sector
Cambridgeshire County Council,25-May-17,23158579-15389468,-950,The Gables Specialist Nursing Home,Care Establishment,2 - Commissioning - Older people Pool,Older People Mental Health Fenland,Nursing Independent Sector
Cambridgeshire County Council,18-May-17,23155835-15365481,-950,Askham Place Pd,Care Establishment,3 - Operations - Countywide Services,Countywide PD Service - Care,Nursing Independent Sector
Cambridgeshire County Council,25-May-17,23158565-15389462,-950,The Gables Specialist Nursing Home,Care Establishment,2 - Commissioning - Older people Pool,Older People Mental Health Fenland,Nursing Independent Sector
Cambridgeshire County Council,25-May-17,23158571-15389465,-950,The Gables Specialist Nursing Home,Care Establishment,2 - Commissioning - Older people Pool,Older People Mental Health Fenland,Nursing Independent Sector
Cambridgeshire County Council,18-May-17,23155839-15365483,-950,Askham Place Pd,Care Establishment,3 - Operations - Countywide Services,Countywide PD Service - Care,Nursing Independent Sector
Cambridgeshire County Council,18-May-17,23155833-15365480,-950,Askham Place Pd,Care Establishment,3 - Operations - Countywide Services,Countywide PD Service - Care,Nursing Independent Sector
Cambridgeshire County Council,04-May-17,23154491-15285129,-948.75,Bramley Court,Care Establishment,2 - Commissioning - Older people Pool,Older People - City & South,Nursing Independent Sector
Cambridgeshire County Council,04-May-17,23154498-15285133,-948.75,Bramley Court,Care Establishment,2 - Commissioning - Older people Pool,Older People - City & South,Nursing Independent Sector
Cambridgeshire County Council,04-May-17,23163073-15285206,-948.75,Bramley Court,Care Establishment,2 - Commissioning - Older people Pool,Older People Mental Health City & South,Nursing Independent Sector
Cambridgeshire County Council,04-May-17,23163082-15285215,-948.75,Bramley Court,Care Establishment,2 - Commissioning - Older people Pool,Older People Mental Health City & South,Nursing Independent Sector
Cambridgeshire County Council,04-May-17,23154488-15285127,-948.75,Bramley Court,Care Establishment,2 - Commissioning - Older people Pool,Older People - City & South,Nursing Independent Sector
Cambridgeshire County Council,04-May-17,23163088-15285236,-948.75,Bramley Court,Care Establishment,2 - Commissioning - Older people Pool,Older People Mental Health City & South,Nursing Independent Sector
Cambridgeshire County Council,04-May-17,23154486-15285125,-948.75,Bramley Court,Care Establishment,2 - Commissioning - Older people Pool,Older People - City & South,Nursing Independent Sector
Cambridgeshire County Council,04-May-17,23154487-15285126,-948.75,Bramley Court,Care Establishment,2 - Commissioning - Older people Pool,Older People - City & South,Nursing Independent Sector
Cambridgeshire County Council,04-May-17,23163089-15285237,-948.75,Bramley Court,Care Establishment,2 - Commissioning - Older people Pool,Older People Mental Health City & South,Nursing Independent Sector
Cambridgeshire County Council,04-May-17,23163077-15285210,-948.75,Bramley Court,Care Establishment,2 - Commissioning - Older people Pool,Older People Mental Health City & South,Nursing Independent Sector
Cambridgeshire County Council,04-May-17,23163079-15285212,-948.75,Bramley Court,Care Establishment,2 - Commissioning - Older people Pool,Older People Mental Health City & South,Nursing Independent Sector
Cambridgeshire County Council,04-May-17,23154483-15285124,-948.75,Bramley Court,Care Establishment,2 - Commissioning - Older people Pool,Older People - City & South,Nursing Independent Sector
Cambridgeshire County Council,04-May-17,23154495-15285131,-948.75,Bramley Court,Care Establishment,2 - Commissioning - Older people Pool,Older People - City & South,Nursing Independent Sector
Cambridgeshire County Council,04-May-17,23163071-15285204,-948.75,Bramley Court,Care Establishment,2 - Commissioning - Older people Pool,Older People Mental Health City & South,Nursing Independent Sector
Cambridgeshire County Council,12-May-17,23259073-15339212,-948.16,Redacted Personal Data,Individual,2 - Operations - Learning Disability,LDP South Cambs Locality - Care,Direct Payments - Social Services
Cambridgeshire County Council,25-May-17,23155784-15408250,-948.03,Eagle Wood Neurological Care,Care Establishment,2 - Commissioning - Older people Pool,Older People Mental Health Hunts,Nursing Independent Sector
Cambridgeshire County Council,25-May-17,23155786-15408251,-948.03,Eagle Wood Neurological Care,Care Establishment,2 - Commissioning - Older people Pool,Older People Mental Health Hunts,Nursing Independent Sector
Cambridgeshire County Council,25-May-17,23152141-15408237,-948.03,Eagle Wood Neurological Care,Care Establishment,2 - Commissioning - Older people Pool,Older People Mental Health Hunts,Nursing Independent Sector
Cambridgeshire County Council,25-May-17,23152143-15408238,-948.03,Eagle Wood Neurological Care,Care Establishment,2 - Commissioning - Older people Pool,Older People Mental Health Hunts,Nursing Independent Sector
Cambridgeshire County Council,04-May-17,23159643-15289508,-947.09,Making Space#1,Care Establishment,4 - Commissioning - Mental Health & Supporting People,Cambridge Mental Health team,Nursing Independent Sector
Cambridgeshire County Council,04-May-17,23159639-15289504,-947.09,Making Space#1,Care Establishment,4 - Commissioning - Mental Health & Supporting People,Cambridge Mental Health team,Nursing Independent Sector
Cambridgeshire County Council,04-May-17,23159642-15289507,-947.09,Making Space#1,Care Establishment,4 - Commissioning - Mental Health & Supporting People,Cambridge Mental Health team,Nursing Independent Sector
Cambridgeshire County Council,04-May-17,23159659-15289520,-947.09,Making Space#1,Care Establishment,4 - Commissioning - Mental Health & Supporting People,Cambridge Mental Health team,Nursing Independent Sector
Cambridgeshire County Council,04-May-17,23159661-15289522,-947.09,Making Space#1,Care Establishment,4 - Commissioning - Mental Health & Supporting People,Cambridge Mental Health team,Nursing Independent Sector
Cambridgeshire County Council,04-May-17,23159657-15289518,-947.09,Making Space#1,Care Establishment,4 - Commissioning - Mental Health & Supporting People,Cambridge Mental Health team,Nursing Independent Sector
Cambridgeshire County Council,04-May-17,23159641-15289506,-947.09,Making Space#1,Care Establishment,4 - Commissioning - Mental Health & Supporting People,Cambridge Mental Health team,Nursing Independent Sector
Cambridgeshire County Council,04-May-17,23159645-15289510,-947.09,Making Space#1,Care Establishment,4 - Commissioning - Mental Health & Supporting People,Cambridge Mental Health team,Nursing Independent Sector
Cambridgeshire County Council,25-May-17,23154857-15399994,-939.25,Oaklands Care Home,Care Establishment,3 - Operations - Countywide Services,Countywide PD Service - Care,Nursing Independent Sector
Cambridgeshire County Council,25-May-17,23154846-15399990,-939.25,Oaklands Care Home,Care Establishment,3 - Operations - Countywide Services,Countywide PD Service - Care,Nursing Independent Sector
Cambridgeshire County Council,25-May-17,23154835-15399986,-939.25,Oaklands Care Home,Care Establishment,3 - Operations - Countywide Services,Countywide PD Service - Care,Nursing Independent Sector
Cambridgeshire County Council,25-May-17,23154838-15399988,-939.25,Oaklands Care Home,Care Establishment,3 - Operations - Countywide Services,Countywide PD Service - Care,Nursing Independent Sector
Cambridgeshire County Council,04-May-17,23153733-15291205,-936.25,Eltisley Manor (Psycare Ltd),Care Establishment,2 - Commissioning - Older people Pool,Older People Mental Health City & South,Nursing Independent Sector
Cambridgeshire County Council,04-May-17,23153734-15291206,-936.25,Eltisley Manor (Psycare Ltd),Care Establishment,2 - Commissioning - Older people Pool,Older People Mental Health City & South,Nursing Independent Sector
Cambridgeshire County Council,04-May-17,23153728-15291200,-936.25,Eltisley Manor (Psycare Ltd),Care Establishment,2 - Commissioning - Older people Pool,Older People Mental Health City & South,Nursing Independent Sector
Cambridgeshire County Council,04-May-17,23153729-15291201,-936.25,Eltisley Manor (Psycare Ltd),Care Establishment,2 - Commissioning - Older people Pool,Older People Mental Health City & South,Nursing Independent Sector
Cambridgeshire County Council,04-May-17,23153735-15291207,-936.25,Eltisley Manor (Psycare Ltd),Care Establishment,2 - Commissioning - Older people Pool,Older People Mental Health City & South,Nursing Independent Sector
Cambridgeshire County Council,04-May-17,23153722-15291194,-936.25,Eltisley Manor (Psycare Ltd),Care Establishment,2 - Commissioning - Older people Pool,Older People Mental Health City & South,Nursing Independent Sector
Cambridgeshire County Council,04-May-17,23153739-15291192,-936.25,Eltisley Manor (Psycare Ltd),Care Establishment,2 - Commissioning - Older people Pool,Older People Mental Health City & South,Nursing Independent Sector
Cambridgeshire County Council,04-May-17,23159836-15287405,-934.25,Abbey Healthcare (Huntingdon) Ltd,Care Establishment,2 - Commissioning - Older people Pool,Older People Mental Health Hunts,Nursing Independent Sector
Cambridgeshire County Council,04-May-17,23159847-15287397,-934.25,Abbey Healthcare (Huntingdon) Ltd,Care Establishment,2 - Commissioning - Older people Pool,Older People Mental Health Hunts,Nursing Independent Sector
Cambridgeshire County Council,04-May-17,23159838-15287407,-934.25,Abbey Healthcare (Huntingdon) Ltd,Care Establishment,2 - Commissioning - Older people Pool,Older People Mental Health Hunts,Nursing Independent Sector
Cambridgeshire County Council,04-May-17,23159850-15287400,-934.25,Abbey Healthcare (Huntingdon) Ltd,Care Establishment,2 - Commissioning - Older people Pool,Older People Mental Health Hunts,Nursing Independent Sector
Cambridgeshire County Council,04-May-17,23159835-15287404,-934.25,Abbey Healthcare (Huntingdon) Ltd,Care Establishment,2 - Commissioning - Older people Pool,Older People Mental Health Hunts,Nursing Independent Sector
Cambridgeshire County Council,04-May-17,23159839-15287408,-934.25,Abbey Healthcare (Huntingdon) Ltd,Care Establishment,2 - Commissioning - Older people Pool,Older People Mental Health Hunts,Nursing Independent Sector
Cambridgeshire County Council,04-May-17,23159840-15287409,-934.25,Abbey Healthcare (Huntingdon) Ltd,Care Establishment,2 - Commissioning - Older people Pool,Older People Mental Health Hunts,Nursing Independent Sector
Cambridgeshire County Council,04-May-17,23152976-15289457,-933.68,Making Space#1,Care Establishment,2 - Commissioning - Older people Pool,Older People Mental Health E Cambs,Nursing Independent Sector
Cambridgeshire County Council,04-May-17,23152977-15289458,-933.68,Making Space#1,Care Establishment,2 - Commissioning - Older people Pool,Older People Mental Health E Cambs,Nursing Independent Sector
Cambridgeshire County Council,04-May-17,23152970-15289451,-933.68,Making Space#1,Care Establishment,2 - Commissioning - Older people Pool,Older People Mental Health E Cambs,Nursing Independent Sector
Cambridgeshire County Council,04-May-17,23152967-15289449,-933.68,Making Space#1,Care Establishment,2 - Commissioning - Older people Pool,Older People Mental Health E Cambs,Nursing Independent Sector
Cambridgeshire County Council,04-May-17,23152978-15289459,-933.68,Making Space#1,Care Establishment,2 - Commissioning - Older people Pool,Older People Mental Health E Cambs,Nursing Independent Sector
Cambridgeshire County Council,04-May-17,23152969-15289450,-933.68,Making Space#1,Care Establishment,2 - Commissioning - Older people Pool,Older People Mental Health E Cambs,Nursing Independent Sector
Cambridgeshire County Council,04-May-17,23152963-15289445,-933.68,Making Space#1,Care Establishment,2 - Commissioning - Older people Pool,Older People Mental Health E Cambs,Nursing Independent Sector
Cambridgeshire County Council,04-May-17,23114277-15289351,-926.11,Making Space#1,Care Establishment,3 - Operations - Countywide Services,Countywide PD Service - Care,Nursing Independent Sector
Cambridgeshire County Council,04-May-17,23114287-15289361,-926.11,Making Space#1,Care Establishment,3 - Operations - Countywide Services,Countywide PD Service - Care,Nursing Independent Sector
Cambridgeshire County Council,04-May-17,23114305-15289379,-926.11,Making Space#1,Care Establishment,3 - Operations - Countywide Services,Countywide PD Service - Care,Nursing Independent Sector
Cambridgeshire County Council,04-May-17,23114312-15289386,-926.11,Making Space#1,Care Establishment,3 - Operations - Countywide Services,Countywide PD Service - Care,Nursing Independent Sector
Cambridgeshire County Council,04-May-17,23114318-15289392,-926.11,Making Space#1,Care Establishment,3 - Operations - Countywide Services,Countywide PD Service - Care,Nursing Independent Sector
Cambridgeshire County Council,04-May-17,23114259-15289399,-926.11,Making Space#1,Care Establishment,3 - Operations - Countywide Services,Countywide PD Service - Care,Nursing Independent Sector
Cambridgeshire County Council,04-May-17,23139139-15289410,-926.11,Making Space#1,Care Establishment,3 - Operations - Countywide Services,Countywide PD Service - Care,Nursing Independent Sector
Cambridgeshire County Council,04-May-17,23160972-15289552,-926.11,Making Space#1,Care Establishment,3 - Operations - Countywide Services,Countywide PD Service - Care,Nursing Independent Sector
Cambridgeshire County Council,04-May-17,23160982-15289562,-926.11,Making Space#1,Care Establishment,3 - Operations - Countywide Services,Countywide PD Service - Care,Nursing Independent Sector
Cambridgeshire County Council,04-May-17,23160983-15289563,-926.11,Making Space#1,Care Establishment,3 - Operations - Countywide Services,Countywide PD Service - Care,Nursing Independent Sector
Cambridgeshire County Council,04-May-17,23161001-15289581,-926.11,Making Space#1,Care Establishment,3 - Operations - Countywide Services,Countywide PD Service - Care,Nursing Independent Sector
Cambridgeshire County Council,12-May-17,23258707-15338241,-926.11,Making Space#1,Care Establishment,3 - Operations - Countywide Services,Countywide PD Service - Care,Nursing Independent Sector
Cambridgeshire County Council,12-May-17,23258724-15338258,-926.11,Making Space#1,Care Establishment,3 - Operations - Countywide Services,Countywide PD Service - Care,Nursing Independent Sector
Cambridgeshire County Council,12-May-17,23258743-15338277,-926.11,Making Space#1,Care Establishment,3 - Operations - Countywide Services,Countywide PD Service - Care,Nursing Independent Sector
Cambridgeshire County Council,12-May-17,23260752-15338282,-926.11,Making Space#1,Care Establishment,3 - Operations - Countywide Services,Countywide PD Service - Care,Nursing Independent Sector
Cambridgeshire County Council,12-May-17,23260770-15338300,-926.11,Making Space#1,Care Establishment,3 - Operations - Countywide Services,Countywide PD Service - Care,Nursing Independent Sector
Cambridgeshire County Council,18-May-17,23334241-15365329,-926.11,Making Space#1,Care Establishment,3 - Operations - Countywide Services,Countywide PD Service - Care,Nursing Independent Sector
Cambridgeshire County Council,18-May-17,23334249-15365337,-926.11,Making Space#1,Care Establishment,3 - Operations - Countywide Services,Countywide PD Service - Care,Nursing Independent Sector
Cambridgeshire County Council,18-May-17,23335261-15365375,-926.11,Making Space#1,Care Establishment,3 - Operations - Countywide Services,Countywide PD Service - Care,Nursing Independent Sector
Cambridgeshire County Council,18-May-17,23335265-15365379,-926.11,Making Space#1,Care Establishment,3 - Operations - Countywide Services,Countywide PD Service - Care,Nursing Independent Sector
Cambridgeshire County Council,04-May-17,23114271-15289345,-926.11,Making Space#1,Care Establishment,3 - Operations - Countywide Services,Countywide PD Service - Care,Nursing Independent Sector
Cambridgeshire County Council,04-May-17,23114292-15289366,-926.11,Making Space#1,Care Establishment,3 - Operations - Countywide Services,Countywide PD Service - Care,Nursing Independent Sector
Cambridgeshire County Council,04-May-17,23114298-15289372,-926.11,Making Space#1,Care Establishment,3 - Operations - Countywide Services,Countywide PD Service - Care,Nursing Independent Sector
Cambridgeshire County Council,04-May-17,23114307-15289381,-926.11,Making Space#1,Care Establishment,3 - Operations - Countywide Services,Countywide PD Service - Care,Nursing Independent Sector
Cambridgeshire County Council,04-May-17,23114319-15289393,-926.11,Making Space#1,Care Establishment,3 - Operations - Countywide Services,Countywide PD Service - Care,Nursing Independent Sector
Cambridgeshire County Council,04-May-17,23114260-15289400,-926.11,Making Space#1,Care Establishment,3 - Operations - Countywide Services,Countywide PD Service - Care,Nursing Independent Sector
Cambridgeshire County Council,04-May-17,23114262-15289402,-926.11,Making Space#1,Care Establishment,3 - Operations - Countywide Services,Countywide PD Service - Care,Nursing Independent Sector
Cambridgeshire County Council,04-May-17,23139146-15289417,-926.11,Making Space#1,Care Establishment,3 - Operations - Countywide Services,Countywide PD Service - Care,Nursing Independent Sector
Cambridgeshire County Council,04-May-17,23160969-15289549,-926.11,Making Space#1,Care Establishment,3 - Operations - Countywide Services,Countywide PD Service - Care,Nursing Independent Sector
Cambridgeshire County Council,04-May-17,23160987-15289567,-926.11,Making Space#1,Care Establishment,3 - Operations - Countywide Services,Countywide PD Service - Care,Nursing Independent Sector
Cambridgeshire County Council,04-May-17,23161002-15289582,-926.11,Making Space#1,Care Establishment,3 - Operations - Countywide Services,Countywide PD Service - Care,Nursing Independent Sector
Cambridgeshire County Council,12-May-17,23258711-15338245,-926.11,Making Space#1,Care Establishment,3 - Operations - Countywide Services,Countywide PD Service - Care,Nursing Independent Sector
Cambridgeshire County Council,12-May-17,23258715-15338249,-926.11,Making Space#1,Care Establishment,3 - Operations - Countywide Services,Countywide PD Service - Care,Nursing Independent Sector
Cambridgeshire County Council,12-May-17,23258745-15338279,-926.11,Making Space#1,Care Establishment,3 - Operations - Countywide Services,Countywide PD Service - Care,Nursing Independent Sector
Cambridgeshire County Council,18-May-17,23334247-15365335,-926.11,Making Space#1,Care Establishment,3 - Operations - Countywide Services,Countywide PD Service - Care,Nursing Independent Sector
Cambridgeshire County Council,18-May-17,23334248-15365336,-926.11,Making Space#1,Care Establishment,3 - Operations - Countywide Services,Countywide PD Service - Care,Nursing Independent Sector
Cambridgeshire County Council,18-May-17,23335236-15365350,-926.11,Making Space#1,Care Establishment,3 - Operations - Countywide Services,Countywide PD Service - Care,Nursing Independent Sector
Cambridgeshire County Council,04-May-17,23114275-15289349,-926.11,Making Space#1,Care Establishment,3 - Operations - Countywide Services,Countywide PD Service - Care,Nursing Independent Sector
Cambridgeshire County Council,04-May-17,23114279-15289353,-926.11,Making Space#1,Care Establishment,3 - Operations - Countywide Services,Countywide PD Service - Care,Nursing Independent Sector
Cambridgeshire County Council,04-May-17,23114303-15289377,-926.11,Making Space#1,Care Establishment,3 - Operations - Countywide Services,Countywide PD Service - Care,Nursing Independent Sector
Cambridgeshire County Council,04-May-17,23161009-15289589,-926.11,Making Space#1,Care Establishment,3 - Operations - Countywide Services,Countywide PD Service - Care,Nursing Independent Sector
Cambridgeshire County Council,12-May-17,23258728-15338262,-926.11,Making Space#1,Care Establishment,3 - Operations - Countywide Services,Countywide PD Service - Care,Nursing Independent Sector
Cambridgeshire County Council,12-May-17,23258738-15338272,-926.11,Making Space#1,Care Establishment,3 - Operations - Countywide Services,Countywide PD Service - Care,Nursing Independent Sector
Cambridgeshire County Council,12-May-17,23260757-15338287,-926.11,Making Space#1,Care Establishment,3 - Operations - Countywide Services,Countywide PD Service - Care,Nursing Independent Sector
Cambridgeshire County Council,18-May-17,23334251-15365339,-926.11,Making Space#1,Care Establishment,3 - Operations - Countywide Services,Countywide PD Service - Care,Nursing Independent Sector
Cambridgeshire County Council,18-May-17,23335247-15365361,-926.11,Making Space#1,Care Establishment,3 - Operations - Countywide Services,Countywide PD Service - Care,Nursing Independent Sector
Cambridgeshire County Council,04-May-17,23114315-15289389,-926.11,Making Space#1,Care Establishment,3 - Operations - Countywide Services,Countywide PD Service - Care,Nursing Independent Sector
Cambridgeshire County Council,04-May-17,23114321-15289395,-926.11,Making Space#1,Care Establishment,3 - Operations - Countywide Services,Countywide PD Service - Care,Nursing Independent Sector
Cambridgeshire County Council,04-May-17,23160964-15289544,-926.11,Making Space#1,Care Establishment,3 - Operations - Countywide Services,Countywide PD Service - Care,Nursing Independent Sector
Cambridgeshire County Council,04-May-17,23160970-15289550,-926.11,Making Space#1,Care Establishment,3 - Operations - Countywide Services,Countywide PD Service - Care,Nursing Independent Sector
Cambridgeshire County Council,04-May-17,23160974-15289554,-926.11,Making Space#1,Care Establishment,3 - Operations - Countywide Services,Countywide PD Service - Care,Nursing Independent Sector
Cambridgeshire County Council,04-May-17,23160996-15289576,-926.11,Making Space#1,Care Establishment,3 - Operations - Countywide Services,Countywide PD Service - Care,Nursing Independent Sector
Cambridgeshire County Council,12-May-17,23258747-15338281,-926.11,Making Space#1,Care Establishment,3 - Operations - Countywide Services,Countywide PD Service - Care,Nursing Independent Sector
Cambridgeshire County Council,18-May-17,23334261-15365349,-926.11,Making Space#1,Care Establishment,3 - Operations - Countywide Services,Countywide PD Service - Care,Nursing Independent Sector
Cambridgeshire County Council,18-May-17,23335246-15365360,-926.11,Making Space#1,Care Establishment,3 - Operations - Countywide Services,Countywide PD Service - Care,Nursing Independent Sector
Cambridgeshire County Council,18-May-17,23335254-15365368,-926.11,Making Space#1,Care Establishment,3 - Operations - Countywide Services,Countywide PD Service - Care,Nursing Independent Sector
Cambridgeshire County Council,18-May-17,23335266-15365380,-926.11,Making Space#1,Care Establishment,3 - Operations - Countywide Services,Countywide PD Service - Care,Nursing Independent Sector
Cambridgeshire County Council,04-May-17,23114289-15289363,-926.11,Making Space#1,Care Establishment,3 - Operations - Countywide Services,Countywide PD Service - Care,Nursing Independent Sector
Cambridgeshire County Council,04-May-17,23114296-15289370,-926.11,Making Space#1,Care Establishment,3 - Operations - Countywide Services,Countywide PD Service - Care,Nursing Independent Sector
Cambridgeshire County Council,04-May-17,23114299-15289373,-926.11,Making Space#1,Care Establishment,3 - Operations - Countywide Services,Countywide PD Service - Care,Nursing Independent Sector
Cambridgeshire County Council,04-May-17,23114310-15289384,-926.11,Making Space#1,Care Establishment,3 - Operations - Countywide Services,Countywide PD Service - Care,Nursing Independent Sector
Cambridgeshire County Council,04-May-17,23114314-15289388,-926.11,Making Space#1,Care Establishment,3 - Operations - Countywide Services,Countywide PD Service - Care,Nursing Independent Sector
Cambridgeshire County Council,04-May-17,23114263-15289403,-926.11,Making Space#1,Care Establishment,3 - Operations - Countywide Services,Countywide PD Service - Care,Nursing Independent Sector
Cambridgeshire County Council,04-May-17,23139147-15289418,-926.11,Making Space#1,Care Establishment,3 - Operations - Countywide Services,Countywide PD Service - Care,Nursing Independent Sector
Cambridgeshire County Council,12-May-17,23258721-15338255,-926.11,Making Space#1,Care Establishment,3 - Operations - Countywide Services,Countywide PD Service - Care,Nursing Independent Sector
Cambridgeshire County Council,12-May-17,23258729-15338263,-926.11,Making Space#1,Care Establishment,3 - Operations - Countywide Services,Countywide PD Service - Care,Nursing Independent Sector
Cambridgeshire County Council,12-May-17,23258730-15338264,-926.11,Making Space#1,Care Establishment,3 - Operations - Countywide Services,Countywide PD Service - Care,Nursing Independent Sector
Cambridgeshire County Council,12-May-17,23258732-15338266,-926.11,Making Space#1,Care Establishment,3 - Operations - Countywide Services,Countywide PD Service - Care,Nursing Independent Sector
Cambridgeshire County Council,12-May-17,23260758-15338288,-926.11,Making Space#1,Care Establishment,3 - Operations - Countywide Services,Countywide PD Service - Care,Nursing Independent Sector
Cambridgeshire County Council,12-May-17,23260760-15338290,-926.11,Making Space#1,Care Establishment,3 - Operations - Countywide Services,Countywide PD Service - Care,Nursing Independent Sector
Cambridgeshire County Council,12-May-17,23260767-15338297,-926.11,Making Space#1,Care Establishment,3 - Operations - Countywide Services,Countywide PD Service - Care,Nursing Independent Sector
Cambridgeshire County Council,18-May-17,23334253-15365341,-926.11,Making Space#1,Care Establishment,3 - Operations - Countywide Services,Countywide PD Service - Care,Nursing Independent Sector
Cambridgeshire County Council,18-May-17,23334255-15365343,-926.11,Making Space#1,Care Establishment,3 - Operations - Countywide Services,Countywide PD Service - Care,Nursing Independent Sector
Cambridgeshire County Council,18-May-17,23335244-15365358,-926.11,Making Space#1,Care Establishment,3 - Operations - Countywide Services,Countywide PD Service - Care,Nursing Independent Sector
Cambridgeshire County Council,18-May-17,23335269-15365383,-926.11,Making Space#1,Care Establishment,3 - Operations - Countywide Services,Countywide PD Service - Care,Nursing Independent Sector
Cambridgeshire County Council,18-May-17,23335231-15365384,-926.11,Making Space#1,Care Establishment,3 - Operations - Countywide Services,Countywide PD Service - Care,Nursing Independent Sector
Cambridgeshire County Council,04-May-17,23114288-15289362,-926.11,Making Space#1,Care Establishment,3 - Operations - Countywide Services,Countywide PD Service - Care,Nursing Independent Sector
Cambridgeshire County Council,04-May-17,23114306-15289380,-926.11,Making Space#1,Care Establishment,3 - Operations - Countywide Services,Countywide PD Service - Care,Nursing Independent Sector
Cambridgeshire County Council,04-May-17,23114308-15289382,-926.11,Making Space#1,Care Establishment,3 - Operations - Countywide Services,Countywide PD Service - Care,Nursing Independent Sector
Cambridgeshire County Council,04-May-17,23114322-15289396,-926.11,Making Space#1,Care Establishment,3 - Operations - Countywide Services,Countywide PD Service - Care,Nursing Independent Sector
Cambridgeshire County Council,04-May-17,23139142-15289413,-926.11,Making Space#1,Care Establishment,3 - Operations - Countywide Services,Countywide PD Service - Care,Nursing Independent Sector
Cambridgeshire County Council,04-May-17,23139153-15289424,-926.11,Making Space#1,Care Establishment,3 - Operations - Countywide Services,Countywide PD Service - Care,Nursing Independent Sector
Cambridgeshire County Council,04-May-17,23160956-15289536,-926.11,Making Space#1,Care Establishment,3 - Operations - Countywide Services,Countywide PD Service - Care,Nursing Independent Sector
Cambridgeshire County Council,04-May-17,23160958-15289538,-926.11,Making Space#1,Care Establishment,3 - Operations - Countywide Services,Countywide PD Service - Care,Nursing Independent Sector
Cambridgeshire County Council,12-May-17,23258710-15338244,-926.11,Making Space#1,Care Establishment,3 - Operations - Countywide Services,Countywide PD Service - Care,Nursing Independent Sector
Cambridgeshire County Council,12-May-17,23258720-15338254,-926.11,Making Space#1,Care Establishment,3 - Operations - Countywide Services,Countywide PD Service - Care,Nursing Independent Sector
Cambridgeshire County Council,12-May-17,23258723-15338257,-926.11,Making Space#1,Care Establishment,3 - Operations - Countywide Services,Countywide PD Service - Care,Nursing Independent Sector
Cambridgeshire County Council,12-May-17,23258725-15338259,-926.11,Making Space#1,Care Establishment,3 - Operations - Countywide Services,Countywide PD Service - Care,Nursing Independent Sector
Cambridgeshire County Council,12-May-17,23258727-15338261,-926.11,Making Space#1,Care Establishment,3 - Operations - Countywide Services,Countywide PD Service - Care,Nursing Independent Sector
Cambridgeshire County Council,12-May-17,23258746-15338280,-926.11,Making Space#1,Care Establishment,3 - Operations - Countywide Services,Countywide PD Service - Care,Nursing Independent Sector
Cambridgeshire County Council,18-May-17,23334244-15365332,-926.11,Making Space#1,Care Establishment,3 - Operations - Countywide Services,Countywide PD Service - Care,Nursing Independent Sector
Cambridgeshire County Council,18-May-17,23335248-15365362,-926.11,Making Space#1,Care Establishment,3 - Operations - Countywide Services,Countywide PD Service - Care,Nursing Independent Sector
Cambridgeshire County Council,18-May-17,23335263-15365377,-926.11,Making Space#1,Care Establishment,3 - Operations - Countywide Services,Countywide PD Service - Care,Nursing Independent Sector
Cambridgeshire County Council,18-May-17,23335233-15365386,-926.11,Making Space#1,Care Establishment,3 - Operations - Countywide Services,Countywide PD Service - Care,Nursing Independent Sector
Cambridgeshire County Council,04-May-17,23114302-15289376,-926.11,Making Space#1,Care Establishment,3 - Operations - Countywide Services,Countywide PD Service - Care,Nursing Independent Sector
Cambridgeshire County Council,04-May-17,23114304-15289378,-926.11,Making Space#1,Care Establishment,3 - Operations - Countywide Services,Countywide PD Service - Care,Nursing Independent Sector
Cambridgeshire County Council,04-May-17,23139151-15289422,-926.11,Making Space#1,Care Establishment,3 - Operations - Countywide Services,Countywide PD Service - Care,Nursing Independent Sector
Cambridgeshire County Council,04-May-17,23161006-15289586,-926.11,Making Space#1,Care Establishment,3 - Operations - Countywide Services,Countywide PD Service - Care,Nursing Independent Sector
Cambridgeshire County Council,04-May-17,23161010-15289590,-926.11,Making Space#1,Care Establishment,3 - Operations - Countywide Services,Countywide PD Service - Care,Nursing Independent Sector
Cambridgeshire County Council,04-May-17,23161011-15289591,-926.11,Making Space#1,Care Establishment,3 - Operations - Countywide Services,Countywide PD Service - Care,Nursing Independent Sector
Cambridgeshire County Council,04-May-17,23161012-15289592,-926.11,Making Space#1,Care Establishment,3 - Operations - Countywide Services,Countywide PD Service - Care,Nursing Independent Sector
Cambridgeshire County Council,12-May-17,23258704-15338238,-926.11,Making Space#1,Care Establishment,3 - Operations - Countywide Services,Countywide PD Service - Care,Nursing Independent Sector
Cambridgeshire County Council,12-May-17,23258735-15338269,-926.11,Making Space#1,Care Establishment,3 - Operations - Countywide Services,Countywide PD Service - Care,Nursing Independent Sector
Cambridgeshire County Council,12-May-17,23258739-15338273,-926.11,Making Space#1,Care Establishment,3 - Operations - Countywide Services,Countywide PD Service - Care,Nursing Independent Sector
Cambridgeshire County Council,12-May-17,23260771-15338301,-926.11,Making Space#1,Care Establishment,3 - Operations - Countywide Services,Countywide PD Service - Care,Nursing Independent Sector
Cambridgeshire County Council,18-May-17,23334239-15365327,-926.11,Making Space#1,Care Establishment,3 - Operations - Countywide Services,Countywide PD Service - Care,Nursing Independent Sector
Cambridgeshire County Council,18-May-17,23334258-15365346,-926.11,Making Space#1,Care Establishment,3 - Operations - Countywide Services,Countywide PD Service - Care,Nursing Independent Sector
Cambridgeshire County Council,18-May-17,23334260-15365348,-926.11,Making Space#1,Care Establishment,3 - Operations - Countywide Services,Countywide PD Service - Care,Nursing Independent Sector
Cambridgeshire County Council,18-May-17,23335250-15365364,-926.11,Making Space#1,Care Establishment,3 - Operations - Countywide Services,Countywide PD Service - Care,Nursing Independent Sector
Cambridgeshire County Council,18-May-17,23335260-15365374,-926.11,Making Space#1,Care Establishment,3 - Operations - Countywide Services,Countywide PD Service - Care,Nursing Independent Sector
Cambridgeshire County Council,18-May-17,23335234-15365387,-926.11,Making Space#1,Care Establishment,3 - Operations - Countywide Services,Countywide PD Service - Care,Nursing Independent Sector
Cambridgeshire County Council,04-May-17,23114270-15289344,-926.11,Making Space#1,Care Establishment,3 - Operations - Countywide Services,Countywide PD Service - Care,Nursing Independent Sector
Cambridgeshire County Council,04-May-17,23114293-15289367,-926.11,Making Space#1,Care Establishment,3 - Operations - Countywide Services,Countywide PD Service - Care,Nursing Independent Sector
Cambridgeshire County Council,04-May-17,23139148-15289419,-926.11,Making Space#1,Care Establishment,3 - Operations - Countywide Services,Countywide PD Service - Care,Nursing Independent Sector
Cambridgeshire County Council,04-May-17,23160965-15289545,-926.11,Making Space#1,Care Establishment,3 - Operations - Countywide Services,Countywide PD Service - Care,Nursing Independent Sector
Cambridgeshire County Council,04-May-17,23160967-15289547,-926.11,Making Space#1,Care Establishment,3 - Operations - Countywide Services,Countywide PD Service - Care,Nursing Independent Sector
Cambridgeshire County Council,04-May-17,23160986-15289566,-926.11,Making Space#1,Care Establishment,3 - Operations - Countywide Services,Countywide PD Service - Care,Nursing Independent Sector
Cambridgeshire County Council,04-May-17,23160992-15289572,-926.11,Making Space#1,Care Establishment,3 - Operations - Countywide Services,Countywide PD Service - Care,Nursing Independent Sector
Cambridgeshire County Council,04-May-17,23160994-15289574,-926.11,Making Space#1,Care Establishment,3 - Operations - Countywide Services,Countywide PD Service - Care,Nursing Independent Sector
Cambridgeshire County Council,04-May-17,23160995-15289575,-926.11,Making Space#1,Care Establishment,3 - Operations - Countywide Services,Countywide PD Service - Care,Nursing Independent Sector
Cambridgeshire County Council,04-May-17,23161005-15289585,-926.11,Making Space#1,Care Establishment,3 - Operations - Countywide Services,Countywide PD Service - Care,Nursing Independent Sector
Cambridgeshire County Council,12-May-17,23258712-15338246,-926.11,Making Space#1,Care Establishment,3 - Operations - Countywide Services,Countywide PD Service - Care,Nursing Independent Sector
Cambridgeshire County Council,12-May-17,23258744-15338278,-926.11,Making Space#1,Care Establishment,3 - Operations - Countywide Services,Countywide PD Service - Care,Nursing Independent Sector
Cambridgeshire County Council,12-May-17,23260772-15338302,-926.11,Making Space#1,Care Establishment,3 - Operations - Countywide Services,Countywide PD Service - Care,Nursing Independent Sector
Cambridgeshire County Council,18-May-17,23334242-15365330,-926.11,Making Space#1,Care Establishment,3 - Operations - Countywide Services,Countywide PD Service - Care,Nursing Independent Sector
Cambridgeshire County Council,18-May-17,23334259-15365347,-926.11,Making Space#1,Care Establishment,3 - Operations - Countywide Services,Countywide PD Service - Care,Nursing Independent Sector
Cambridgeshire County Council,18-May-17,23335245-15365359,-926.11,Making Space#1,Care Establishment,3 - Operations - Countywide Services,Countywide PD Service - Care,Nursing Independent Sector
Cambridgeshire County Council,18-May-17,23335268-15365382,-926.11,Making Space#1,Care Establishment,3 - Operations - Countywide Services,Countywide PD Service - Care,Nursing Independent Sector
Cambridgeshire County Council,04-May-17,23117502-15290529,-925.85,Cherry Hinton Nursing Home,Care Establishment,2 - Commissioning - Older people Pool,Older People Mental Health City & South,Nursing Independent Sector
Cambridgeshire County Council,04-May-17,23112505-15290507,-925.85,Cherry Hinton Nursing Home,Care Establishment,2 - Commissioning - Older people Pool,Older People Mental Health City & South,Nursing Independent Sector
Cambridgeshire County Council,04-May-17,23112513-15290509,-925.85,Cherry Hinton Nursing Home,Care Establishment,2 - Commissioning - Older people Pool,Older People Mental Health City & South,Nursing Independent Sector
Cambridgeshire County Council,04-May-17,23112519-15290515,-925.85,Cherry Hinton Nursing Home,Care Establishment,2 - Commissioning - Older people Pool,Older People Mental Health City & South,Nursing Independent Sector
Cambridgeshire County Council,04-May-17,23112526-15290518,-925.85,Cherry Hinton Nursing Home,Care Establishment,2 - Commissioning - Older people Pool,Older People Mental Health City & South,Nursing Independent Sector
Cambridgeshire County Council,04-May-17,23117509-15290532,-925.85,Cherry Hinton Nursing Home,Care Establishment,2 - Commissioning - Older people Pool,Older People Mental Health City & South,Nursing Independent Sector
Cambridgeshire County Council,04-May-17,23112504-15290506,-925.85,Cherry Hinton Nursing Home,Care Establishment,2 - Commissioning - Older people Pool,Older People Mental Health City & South,Nursing Independent Sector
Cambridgeshire County Council,04-May-17,23117512-15290534,-925.85,Cherry Hinton Nursing Home,Care Establishment,2 - Commissioning - Older people Pool,Older People Mental Health City & South,Nursing Independent Sector
Cambridgeshire County Council,04-May-17,23112503-15290505,-925.85,Cherry Hinton Nursing Home,Care Establishment,2 - Commissioning - Older people Pool,Older People Mental Health City & South,Nursing Independent Sector
Cambridgeshire County Council,04-May-17,23112512-15290508,-925.85,Cherry Hinton Nursing Home,Care Establishment,2 - Commissioning - Older people Pool,Older People Mental Health City & South,Nursing Independent Sector
